Workbook

Sheet 은평구총괄
B1: 은평구 등록장애인 현황 (2025. 9월 말 기준)
B3: 서울특별시 은평구 | J3: (단위 : 명)
B5: 자치구 | C5: 장애유형 | D5: 합계 | G5: 심한 장애 | J5: 심하지 않은 장애
D6: 계 | E6: 남 | F6: 여 | G6: 계 | H6: 남 | I6: 여 | J6: 계 | K6: 남 | L6: 여
B7: 은평구 | C7: 합 계 | D7: 21202 | E7: 12316 | F7: 8886 | G7: 8054 | H7: 4996 | I7: 3058 | J7: 13148 | K7: 7320 | L7: 5828
C8: 지체 | D8: 8216 | E8: 4476 | F8: 3740 | G8: 1333 | H8: 850 | I8: 483 | J8: 6883 | K8: 3626 | L8: 3257
C9: 시각 | D9: 2275 | E9: 1334 | F9: 941 | G9: 433 | H9: 234 | I9: 199 | J9: 1842 | K9: 1100 | L9: 742
C10: 청각 | D10: 3346 | E10: 1850 | F10: 1496 | G10: 614 | H10: 301 | I10: 313 | J10: 2732 | K10: 1549 | L10: 1183
C11: 언어 | D11: 168 | E11: 122 | F11: 46 | G11: 94 | H11: 68 | I11: 26 | J11: 74 | K11: 54 | L11: 20
C12: 지적 | D12: 1892 | E12: 1241 | F12: 651 | G12: 1892 | H12: 1241 | I12: 651 | J12: 0 | K12: 0 | L12: 0
C13: 뇌병변 | D13: 2061 | E13: 1219 | F13: 842 | G13: 1137 | H13: 636 | I13: 501 | J13: 924 | K13: 583 | L13: 341
C14: 자폐성 | D14: 525 | E14: 433 | F14: 92 | G14: 525 | H14: 433 | I14: 92 | J14: 0 | K14: 0 | L14: 0
C15: 정신 | D15: 1111 | E15: 671 | F15: 440 | G15: 1071 | H15: 651 | I15: 420 | J15: 40 | K15: 20 | L15: 20
C16: 신장 | D16: 997 | E16: 593 | F16: 404 | G16: 776 | H16: 466 | I16: 310 | J16: 221 | K16: 127 | L16: 94
C17: 심장 | D17: 45 | E17: 26 | F17: 19 | G17: 31 | H17: 14 | I17: 17 | J17: 14 | K17: 12 | L17: 2
C18: 호흡기 | D18: 110 | E18: 77 | F18: 33 | G18: 103 | H18: 75 | I18: 28 | J18: 7 | K18: 2 | L18: 5
C19: 간 | D19: 172 | E19: 107 | F19: 65 | G19: 7 | H19: 5 | I19: 2 | J19: 165 | K19: 102 | L19: 63
C20: 안면 | D20: 24 | E20: 14 | F20: 10 | G20: 9 | H20: 6 | I20: 3 | J20: 15 | K20: 8 | L20: 7
C21: 장루.요루 | D21: 196 | E21: 121 | F21: 75 | G21: 18 | H21: 10 | I21: 8 | J21: 178 | K21: 111 | L21: 67
C22: 뇌전증 | D22: 64 | E22: 32 | F22: 32 | G22: 11 | H22: 6 | I22: 5 | J22: 53 | K22: 26 | L22: 27

Sheet 유형별
A1: 은평구 동별 장애인현황(유형별) (2025. 9월말)
A2: 동별 | B2: 합계 | E2: 지체 | H2: 시각 | K2: 청각 | N2: 언어 | Q2: 지적 | T2: 뇌병변 | W2: 자폐 | Z2: 정신 | AC2: 신장 | AF2: 심장 | AI2: 호흡기 | AL2: 간 | AO2: 안면 | AR2: 장루.요루 | AU2: 뇌전증
B3: 합계 | C3: 남성 | D3: 여성 | E3: 소계 | F3: 남성 | G3: 여성 | H3: 소계 | I3: 남성 | J3: 여성 | K3: 소계 | L3: 남성 | M3: 여성 | N3: 소계 | O3: 남성 | P3: 여성 | Q3: 소계 | R3: 남성 | S3: 여성 | T3: 소계 | U3: 남성 | V3: 여성 | W3: 소계 | X3: 남성 | Y3: 여성 | Z3: 소계 | AA3: 남성 | AB3: 여성 | AC3: 소계 | AD3: 남성 | AE3: 여성 | AF3: 소계 | AG3: 남성 | AH3: 여성 | AI3: 소계 | AJ3: 남성 | AK3: 여성 | AL3: 소계 | AM3: 남성 | AN3: 여성 | AO3: 소계 | AP3: 남성 | AQ3: 여성 | AR3: 소계 | AS3: 남성 | AT3: 여성 | AU3: 소계 | AV3: 남성 | AW3: 여성
A4: 합 계 | B4: 21202 | C4: 12316 | D4: 8886 | E4: 8216 | F4: 4476 | G4: 3740 | H4: 2275 | I4: 1334 | J4: 941 | K4: 3346 | L4: 1850 | M4: 1496 | N4: 168 | O4: 122 | P4: 46 | Q4: 1892 | R4: 1241 | S4: 651 | T4: 2061 | U4: 1219 | V4: 842 | W4: 525 | X4: 433 | Y4: 92 | Z4: 1111 | AA4: 671 | AB4: 440 | AC4: 997 | AD4: 593 | AE4: 404 | AF4: 45 | AG4: 26 | AH4: 19 | AI4: 110 | AJ4: 77 | AK4: 33 | AL4: 172 | AM4: 107 | AN4: 65 | AO4: 24 | AP4: 14 | AQ4: 10 | AR4: 196 | AS4: 121 | AT4: 75 | AU4: 64 | AV4: 32 | AW4: 32
A5: 녹번동 | B5: 1621 | C5: 935 | D5: 686 | E5: 674 | F5: 371 | G5: 303 | H5: 174 | I5: 114 | J5: 60 | K5: 294 | L5: 161 | M5: 133 | N5: 13 | O5: 9 | P5: 4 | Q5: 115 | R5: 73 | S5: 42 | T5: 152 | U5: 79 | V5: 73 | W5: 674 | X5: 371 | Y5: 303 | Z5: 63 | AA5: 34 | AB5: 29 | AC5: 77 | AD5: 50 | AE5: 27 | AF5: 2 | AG5: 1 | AH5: 1 | AI5: 4 | AJ5: 2 | AK5: 2 | AL5: 9 | AM5: 8 | AN5: 1 | AO5: 3 | AP5: 3 | AQ5: 0 | AR5: 17 | AS5: 12 | AT5: 5 | AU5: 1 | AV5: 1 | AW5: 0
A6: 불광1동 | B6: 1564 | C6: 874 | D6: 690 | E6: 622 | F6: 341 | G6: 281 | H6: 180 | I6: 101 | J6: 79 | K6: 250 | L6: 142 | M6: 108 | N6: 12 | O6: 8 | P6: 4 | Q6: 112 | R6: 67 | S6: 45 | T6: 149 | U6: 82 | V6: 67 | W6: 622 | X6: 341 | Y6: 281 | Z6: 66 | AA6: 34 | AB6: 32 | AC6: 94 | AD6: 46 | AE6: 48 | AF6: 4 | AG6: 1 | AH6: 3 | AI6: 7 | AJ6: 7 | AK6: 0 | AL6: 17 | AM6: 9 | AN6: 8 | AO6: 1 | AP6: 1 | AQ6: 0 | AR6: 16 | AS6: 9 | AT6: 7 | AU6: 4 | AV6: 2 | AW6: 2
A7: 불광2동 | B7: 1442 | C7: 842 | D7: 600 | E7: 543 | F7: 306 | G7: 237 | H7: 168 | I7: 114 | J7: 54 | K7: 255 | L7: 145 | M7: 110 | N7: 16 | O7: 15 | P7: 1 | Q7: 118 | R7: 71 | S7: 47 | T7: 124 | U7: 74 | V7: 50 | W7: 543 | X7: 306 | Y7: 237 | Z7: 73 | AA7: 27 | AB7: 46 | AC7: 71 | AD7: 38 | AE7: 33 | AF7: 3 | AG7: 3 | AH7: 0 | AI7: 2 | AJ7: 2 | AK7: 0 | AL7: 7 | AM7: 4 | AN7: 3 | AO7: 3 | AP7: 1 | AQ7: 2 | AR7: 16 | AS7: 5 | AT7: 11 | AU7: 11 | AV7: 5 | AW7: 6
A8: 갈현1동 | B8: 681 | C8: 388 | D8: 293 | E8: 271 | F8: 142 | G8: 129 | H8: 87 | I8: 50 | J8: 37 | K8: 103 | L8: 57 | M8: 46 | N8: 4 | O8: 3 | P8: 1 | Q8: 57 | R8: 37 | S8: 20 | T8: 56 | U8: 38 | V8: 18 | W8: 271 | X8: 142 | Y8: 129 | Z8: 32 | AA8: 17 | AB8: 15 | AC8: 30 | AD8: 14 | AE8: 16 | AF8: 1 | AG8: 1 | AH8: 0 | AI8: 2 | AJ8: 2 | AK8: 0 | AL8: 8 | AM8: 5 | AN8: 3 | AO8: 0 | AP8: 0 | AQ8: 0 | AR8: 9 | AS8: 4 | AT8: 5 | AU8: 2 | AV8: 1 | AW8: 1
A9: 갈현2동 | B9: 1262 | C9: 729 | D9: 533 | E9: 504 | F9: 274 | G9: 230 | H9: 129 | I9: 82 | J9: 47 | K9: 197 | L9: 117 | M9: 80 | N9: 18 | O9: 14 | P9: 4 | Q9: 107 | R9: 67 | S9: 40 | T9: 116 | U9: 67 | V9: 49 | W9: 504 | X9: 274 | Y9: 230 | Z9: 74 | AA9: 33 | AB9: 41 | AC9: 57 | AD9: 36 | AE9: 21 | AF9: 5 | AG9: 2 | AH9: 3 | AI9: 7 | AJ9: 6 | AK9: 1 | AL9: 13 | AM9: 8 | AN9: 5 | AO9: 0 | AP9: 0 | AQ9: 0 | AR9: 8 | AS9: 6 | AT9: 2 | AU9: 3 | AV9: 1 | AW9: 2
A10: 구산동 | B10: 2105 | C10: 1449 | D10: 656 | E10: 577 | F10: 325 | G10: 252 | H10: 167 | I10: 102 | J10: 65 | K10: 233 | L10: 133 | M10: 100 | N10: 15 | O10: 11 | P10: 4 | Q10: 401 | R10: 310 | S10: 91 | T10: 224 | U10: 161 | V10: 63 | W10: 577 | X10: 325 | Y10: 252 | Z10: 308 | AA10: 271 | AB10: 37 | AC10: 65 | AD10: 46 | AE10: 19 | AF10: 0 | AG10: 0 | AH10: 0 | AI10: 22 | AJ10: 15 | AK10: 7 | AL10: 17 | AM10: 15 | AN10: 2 | AO10: 2 | AP10: 1 | AQ10: 1 | AR10: 20 | AS10: 16 | AT10: 4 | AU10: 4 | AV10: 3 | AW10: 1
A11: 대조동 | B11: 1231 | C11: 705 | D11: 526 | E11: 492 | F11: 265 | G11: 227 | H11: 146 | I11: 78 | J11: 68 | K11: 208 | L11: 120 | M11: 88 | N11: 7 | O11: 5 | P11: 2 | Q11: 71 | R11: 47 | S11: 24 | T11: 116 | U11: 68 | V11: 48 | W11: 492 | X11: 265 | Y11: 227 | Z11: 66 | AA11: 33 | AB11: 33 | AC11: 68 | AD11: 46 | AE11: 22 | AF11: 2 | AG11: 1 | AH11: 1 | AI11: 6 | AJ11: 5 | AK11: 1 | AL11: 6 | AM11: 3 | AN11: 3 | AO11: 1 | AP11: 1 | AQ11: 0 | AR11: 11 | AS11: 9 | AT11: 2 | AU11: 3 | AV11: 1 | AW11: 2
A12: 응암1동 | B12: 1313 | C12: 715 | D12: 598 | E12: 562 | F12: 291 | G12: 271 | H12: 152 | I12: 85 | J12: 67 | K12: 218 | L12: 103 | M12: 115 | N12: 6 | O12: 5 | P12: 1 | Q12: 75 | R12: 45 | S12: 30 | T12: 128 | U12: 77 | V12: 51 | W12: 562 | X12: 291 | Y12: 271 | Z12: 49 | AA12: 28 | AB12: 21 | AC12: 55 | AD12: 29 | AE12: 26 | AF12: 6 | AG12: 3 | AH12: 3 | AI12: 5 | AJ12: 5 | AK12: 0 | AL12: 8 | AM12: 4 | AN12: 4 | AO12: 2 | AP12: 2 | AQ12: 0 | AR12: 9 | AS12: 7 | AT12: 2 | AU12: 3 | AV12: 1 | AW12: 2
A13: 응암2동 | B13: 959 | C13: 530 | D13: 429 | E13: 364 | F13: 196 | G13: 168 | H13: 99 | I13: 53 | J13: 46 | K13: 152 | L13: 74 | M13: 78 | N13: 8 | O13: 6 | P13: 2 | Q13: 72 | R13: 46 | S13: 26 | T13: 96 | U13: 51 | V13: 45 | W13: 364 | X13: 196 | Y13: 168 | Z13: 46 | AA13: 30 | AB13: 16 | AC13: 52 | AD13: 25 | AE13: 27 | AF13: 3 | AG13: 2 | AH13: 1 | AI13: 10 | AJ13: 6 | AK13: 4 | AL13: 8 | AM13: 4 | AN13: 4 | AO13: 2 | AP13: 0 | AQ13: 2 | AR13: 6 | AS13: 3 | AT13: 3 | AU13: 5 | AV13: 4 | AW13: 1
A14: 응암3동 | B14: 1314 | C14: 736 | D14: 578 | E14: 509 | F14: 274 | G14: 235 | H14: 148 | I14: 82 | J14: 66 | K14: 247 | L14: 124 | M14: 123 | N14: 7 | O14: 5 | P14: 2 | Q14: 89 | R14: 60 | S14: 29 | T14: 139 | U14: 86 | V14: 53 | W14: 509 | X14: 274 | Y14: 235 | Z14: 51 | AA14: 28 | AB14: 23 | AC14: 58 | AD14: 38 | AE14: 20 | AF14: 3 | AG14: 1 | AH14: 2 | AI14: 8 | AJ14: 6 | AK14: 2 | AL14: 12 | AM14: 3 | AN14: 9 | AO14: 0 | AP14: 0 | AQ14: 0 | AR14: 15 | AS14: 11 | AT14: 4 | AU14: 7 | AV14: 2 | AW14: 5
A15: 역촌동 | B15: 2171 | C15: 1216 | D15: 955 | E15: 886 | F15: 467 | G15: 419 | H15: 206 | I15: 115 | J15: 91 | K15: 344 | L15: 199 | M15: 145 | N15: 18 | O15: 8 | P15: 10 | Q15: 205 | R15: 127 | S15: 78 | T15: 221 | U15: 132 | V15: 89 | W15: 886 | X15: 467 | Y15: 419 | Z15: 92 | AA15: 37 | AB15: 55 | AC15: 108 | AD15: 66 | AE15: 42 | AF15: 2 | AG15: 2 | AH15: 0 | AI15: 14 | AJ15: 7 | AK15: 7 | AL15: 12 | AM15: 8 | AN15: 4 | AO15: 2 | AP15: 1 | AQ15: 1 | AR15: 14 | AS15: 8 | AT15: 6 | AU15: 3 | AV15: 2 | AW15: 1
A16: 신사1동 | B16: 1246 | C16: 731 | D16: 515 | E16: 479 | F16: 275 | G16: 204 | H16: 153 | I16: 86 | J16: 67 | K16: 174 | L16: 109 | M16: 65 | N16: 16 | O16: 9 | P16: 7 | Q16: 148 | R16: 88 | S16: 60 | T16: 110 | U16: 61 | V16: 49 | W16: 479 | X16: 275 | Y16: 204 | Z16: 49 | AA16: 32 | AB16: 17 | AC16: 56 | AD16: 33 | AE16: 23 | AF16: 2 | AG16: 2 | AH16: 0 | AI16: 3 | AJ16: 1 | AK16: 2 | AL16: 7 | AM16: 4 | AN16: 3 | AO16: 2 | AP16: 1 | AQ16: 1 | AR16: 10 | AS16: 4 | AT16: 6 | AU16: 6 | AV16: 3 | AW16: 3
A17: 신사2동 | B17: 880 | C17: 503 | D17: 377 | E17: 377 | F17: 203 | G17: 174 | H17: 86 | I17: 59 | J17: 27 | K17: 137 | L17: 72 | M17: 65 | N17: 6 | O17: 6 | P17: 0 | Q17: 80 | R17: 46 | S17: 34 | T17: 71 | U17: 43 | V17: 28 | W17: 377 | X17: 203 | Y17: 174 | Z17: 25 | AA17: 13 | AB17: 12 | AC17: 50 | AD17: 28 | AE17: 22 | AF17: 3 | AG17: 1 | AH17: 2 | AI17: 7 | AJ17: 6 | AK17: 1 | AL17: 4 | AM17: 2 | AN17: 2 | AO17: 1 | AP17: 1 | AQ17: 0 | AR17: 9 | AS17: 4 | AT17: 5 | AU17: 4 | AV17: 3 | AW17: 1
A18: 증산동 | B18: 656 | C18: 384 | D18: 272 | E18: 278 | F18: 159 | G18: 119 | H18: 54 | I18: 30 | J18: 24 | K18: 118 | L18: 72 | M18: 46 | N18: 6 | O18: 3 | P18: 3 | Q18: 43 | R18: 27 | S18: 16 | T18: 54 | U18: 27 | V18: 27 | W18: 278 | X18: 159 | Y18: 119 | Z18: 33 | AA18: 15 | AB18: 18 | AC18: 32 | AD18: 20 | AE18: 12 | AF18: 1 | AG18: 1 | AH18: 0 | AI18: 3 | AJ18: 2 | AK18: 1 | AL18: 6 | AM18: 5 | AN18: 1 | AO18: 1 | AP18: 0 | AQ18: 1 | AR18: 8 | AS18: 7 | AT18: 1 | AU18: 3 | AV18: 0 | AW18: 3
A19: 수색동 | B19: 822 | C19: 444 | D19: 378 | E19: 317 | F19: 164 | G19: 153 | H19: 97 | I19: 52 | J19: 45 | K19: 125 | L19: 67 | M19: 58 | N19: 4 | O19: 4 | P19: 0 | Q19: 61 | R19: 41 | S19: 20 | T19: 100 | U19: 49 | V19: 51 | W19: 317 | X19: 164 | Y19: 153 | Z19: 31 | AA19: 13 | AB19: 18 | AC19: 37 | AD19: 20 | AE19: 17 | AF19: 1 | AG19: 0 | AH19: 1 | AI19: 3 | AJ19: 0 | AK19: 3 | AL19: 11 | AM19: 8 | AN19: 3 | AO19: 2 | AP19: 2 | AQ19: 0 | AR19: 9 | AS19: 4 | AT19: 5 | AU19: 0 | AV19: 0 | AW19: 0
A20: 진관동 | B20: 1935 | C20: 1135 | D20: 800 | E20: 761 | F20: 423 | G20: 338 | H20: 229 | I20: 131 | J20: 98 | K20: 291 | L20: 155 | M20: 136 | N20: 12 | O20: 11 | P20: 1 | Q20: 138 | R20: 89 | S20: 49 | T20: 205 | U20: 124 | V20: 81 | W20: 761 | X20: 423 | Y20: 338 | Z20: 53 | AA20: 26 | AB20: 27 | AC20: 87 | AD20: 58 | AE20: 29 | AF20: 7 | AG20: 5 | AH20: 2 | AI20: 7 | AJ20: 5 | AK20: 2 | AL20: 27 | AM20: 17 | AN20: 10 | AO20: 2 | AP20: 0 | AQ20: 2 | AR20: 19 | AS20: 12 | AT20: 7 | AU20: 5 | AV20: 3 | AW20: 2

Sheet 정도별
B2: 은평구 동별 장애인현황(정도별)
B3: *2025. 9월말 기준 | K3: (단위 : 명)
B4: 자치구 | C4: 동 | D4: 합계 | G4: 심한 장애 | J4: 심하지 않은 장애
D5: 계 | E5: 남자 | F5: 여자 | G5: 계 | H5: 남자 | I5: 여자 | J5: 계 | K5: 남자 | L5: 여자
B6: 은평구 | C6: 합 계 | D6: 21202 | E6: 12316 | F6: 8886 | G6: 8054 | H6: 4996 | I6: 3058 | J6: 13148 | K6: 7320 | L6: 5828
C7: 녹번동 | D7: 1621 | E7: 935 | F7: 686 | G7: 544 | H7: 319 | I7: 225 | J7: 1077 | K7: 616 | L7: 461
C8: 불광1동 | D8: 1564 | E8: 874 | F8: 690 | G8: 550 | H8: 308 | I8: 242 | J8: 1014 | K8: 566 | L8: 448
C9: 불광2동 | D9: 1442 | E9: 842 | F9: 600 | G9: 507 | H9: 298 | I9: 209 | J9: 935 | K9: 544 | L9: 391
C10: 갈현1동 | D10: 681 | E10: 388 | F10: 293 | G10: 248 | H10: 147 | I10: 101 | J10: 433 | K10: 241 | L10: 192
C11: 갈현2동 | D11: 1262 | E11: 729 | F11: 533 | G11: 473 | H11: 274 | I11: 199 | J11: 789 | K11: 455 | L11: 334
C12: 구산동 | D12: 2105 | E12: 1449 | F12: 656 | G12: 1149 | H12: 895 | I12: 254 | J12: 956 | K12: 554 | L12: 402
C13: 대조동 | D13: 1231 | E13: 705 | F13: 526 | G13: 444 | H13: 272 | I13: 172 | J13: 787 | K13: 433 | L13: 354
C14: 응암1동 | D14: 1313 | E14: 715 | F14: 598 | G14: 458 | H14: 260 | I14: 198 | J14: 855 | K14: 455 | L14: 400
C15: 응암2동 | D15: 959 | E15: 530 | F15: 429 | G15: 375 | H15: 226 | I15: 149 | J15: 584 | K15: 304 | L15: 280
C16: 응암3동 | D16: 1314 | E16: 736 | F16: 578 | G16: 401 | H16: 244 | I16: 157 | J16: 913 | K16: 492 | L16: 421
C17: 역촌동 | D17: 2171 | E17: 1216 | F17: 955 | G17: 803 | H17: 464 | I17: 339 | J17: 1368 | K17: 752 | L17: 616
C18: 신사1동 | D18: 1246 | E18: 731 | F18: 515 | G18: 488 | H18: 299 | I18: 189 | J18: 758 | K18: 432 | L18: 326
C19: 신사2동 | D19: 880 | E19: 503 | F19: 377 | G19: 299 | H19: 182 | I19: 117 | J19: 581 | K19: 321 | L19: 260
C20: 증산동 | D20: 656 | E20: 384 | F20: 272 | G20: 235 | H20: 142 | I20: 93 | J20: 421 | K20: 242 | L20: 179
C21: 수색동 | D21: 822 | E21: 444 | F21: 378 | G21: 317 | H21: 182 | I21: 135 | J21: 505 | K21: 262 | L21: 243
C22: 진관동 | D22: 1935 | E22: 1135 | F22: 800 | G22: 763 | H22: 484 | I22: 279 | J22: 1172 | K22: 651 | L22: 521

Sheet 연령별
A1: 은평구 장애인 연령구간별(5세 간격), 장애정도별 등록 현황
A2: =정도별!B3 -> *2025. 9월말 기준
J3: (단위: 명)
A4: 구분 | B4: 나이 | C4: 합계 | F4: 심한 장애 | I4: 심하지 않은 장애
C5: 합계 | D5: 남성 | E5: 여성 | F5: 소계 | G5: 남성 | H5: 여성 | I5: 소계 | J5: 남성 | K5: 여성
A6: 합계 | B6: 합계 | C6: 21202 | D6: 12316 | E6: 8886 | F6: 8054 | G6: 4996 | H6: 3058 | I6: 13148 | J6: 7320 | K6: 5828
B7: 0~4 | C7: 38 | D7: 19 | E7: 19 | F7: 30 | G7: 16 | H7: 14 | I7: 8 | J7: 3 | K7: 5
B8: 5~9 | C8: 267 | D8: 180 | E8: 87 | F8: 247 | G8: 170 | H8: 77 | I8: 20 | J8: 10 | K8: 10
B9: 10~14 | C9: 313 | D9: 212 | E9: 101 | F9: 292 | G9: 198 | H9: 94 | I9: 21 | J9: 14 | K9: 7
B10: 15~19 | C10: 280 | D10: 191 | E10: 89 | F10: 241 | G10: 168 | H10: 73 | I10: 39 | J10: 23 | K10: 16
B11: 20~24 | C11: 354 | D11: 218 | E11: 136 | F11: 297 | G11: 189 | H11: 108 | I11: 57 | J11: 29 | K11: 28
B12: 25~29 | C12: 480 | D12: 295 | E12: 185 | F12: 367 | G12: 235 | H12: 132 | I12: 113 | J12: 60 | K12: 53
B13: 30~34 | C13: 550 | D13: 358 | E13: 192 | F13: 416 | G13: 280 | H13: 136 | I13: 134 | J13: 78 | K13: 56
B14: 35~39 | C14: 515 | D14: 325 | E14: 190 | F14: 325 | G14: 211 | H14: 114 | I14: 190 | J14: 114 | K14: 76
B15: 40~44 | C15: 637 | D15: 427 | E15: 210 | F15: 348 | G15: 214 | H15: 134 | I15: 289 | J15: 213 | K15: 76
B16: 45~49 | C16: 814 | D16: 564 | E16: 250 | F16: 415 | G16: 275 | H16: 140 | I16: 399 | J16: 289 | K16: 110
B17: 50~54 | C17: 1275 | D17: 859 | E17: 416 | F17: 623 | G17: 389 | H17: 234 | I17: 652 | J17: 470 | K17: 182
B18: 55~59 | C18: 1626 | D18: 1089 | E18: 537 | F18: 708 | G18: 450 | H18: 258 | I18: 918 | J18: 639 | K18: 279
B19: 60~64 | C19: 1973 | D19: 1335 | E19: 638 | F19: 709 | G19: 470 | H19: 239 | I19: 1264 | J19: 865 | K19: 399
B20: 65~69 | C20: 2491 | D20: 1550 | E20: 941 | F20: 811 | G20: 520 | H20: 291 | I20: 1680 | J20: 1030 | K20: 650
B21: 70~74 | C21: 2409 | D21: 1358 | E21: 1051 | F21: 693 | G21: 447 | H21: 246 | I21: 1716 | J21: 911 | K21: 805
B22: 75~79 | C22: 2587 | D22: 1343 | E22: 1244 | F22: 611 | G22: 358 | H22: 253 | I22: 1976 | J22: 985 | K22: 991
B23: 80~84 | C23: 2375 | D23: 1114 | E23: 1261 | F23: 473 | G23: 233 | H23: 240 | I23: 1902 | J23: 881 | K23: 1021
B24: 85~89 | C24: 1557 | D24: 653 | E24: 904 | F24: 315 | G24: 126 | H24: 189 | I24: 1242 | J24: 527 | K24: 715
B25: 90~94 | C25: 544 | D25: 188 | E25: 356 | F25: 109 | G25: 40 | H25: 69 | I25: 435 | J25: 148 | K25: 287
B26: 95~99 | C26: 100 | D26: 33 | E26: 67 | F26: 21 | G26: 7 | H26: 14 | I26: 79 | J26: 26 | K26: 53
B27: 100~104 | C27: 16 | D27: 5 | E27: 11 | F27: 2 | G27: 0 | H27: 2 | I27: 14 | J27: 5 | K27: 9
B28: 105~109 | C28: 1 | D28: 0 | E28: 1 | F28: 1 | G28: 0 | H28: 1 | I28: 0 | J28: 0 | K28: 0

Sheet 연령별,유형별
A1: 은평구 등록장애인 연령별, 유형별 현황
B2: =정도별!B3 -> *2025. 9월말 기준
A3: 구분 | B3: 나이 | C3: 합계 | F3: 지체 | I3: 시각 | L3: 청각 | O3: 언어 | R3: 지적 | U3: 뇌병변 | X3: 자폐 | AA3: 정신 | AD3: 신장 | AG3: 심장 | AJ3: 호흡기 | AM3: 간 | AP3: 안면 | AS3: 장루.요루 | AV3: 뇌전증
C4: 합계 | D4: 남성 | E4: 여성 | F4: 소계 | G4: 남성 | H4: 여성 | I4: 소계 | J4: 남성 | K4: 여성 | L4: 소계 | M4: 남성 | N4: 여성 | O4: 소계 | P4: 남성 | Q4: 여성 | R4: 소계 | S4: 남성 | T4: 여성 | U4: 소계 | V4: 남성 | W4: 여성 | X4: 소계 | Y4: 남성 | Z4: 여성 | AA4: 소계 | AB4: 남성 | AC4: 여성 | AD4: 소계 | AE4: 남성 | AF4: 여성 | AG4: 소계 | AH4: 남성 | AI4: 여성 | AJ4: 소계 | AK4: 남성 | AL4: 여성 | AM4: 소계 | AN4: 남성 | AO4: 여성 | AP4: 소계 | AQ4: 남성 | AR4: 여성 | AS4: 소계 | AT4: 남성 | AU4: 여성 | AV4: 소계 | AW4: 남성 | AX4: 여성
A5: 합계 | C5: 21202 | D5: 12316 | E5: 8886 | F5: 8216 | G5: 4476 | H5: 3740 | I5: 2275 | J5: 1334 | K5: 941 | L5: 3346 | M5: 1850 | N5: 1496 | O5: 168 | P5: 122 | Q5: 46 | R5: 1892 | S5: 1241 | T5: 651 | U5: 2061 | V5: 1219 | W5: 842 | X5: 525 | Y5: 433 | Z5: 92 | AA5: 1111 | AB5: 671 | AC5: 440 | AD5: 997 | AE5: 593 | AF5: 404 | AG5: 45 | AH5: 26 | AI5: 19 | AJ5: 110 | AK5: 77 | AL5: 33 | AM5: 172 | AN5: 107 | AO5: 65 | AP5: 24 | AQ5: 14 | AR5: 10 | AS5: 196 | AT5: 121 | AU5: 75 | AV5: 64 | AW5: 32 | AX5: 32
A6: 합계 | B6: 1 | C6: 5 | D6: 2 | E6: 3 | F6: 0 | G6: 0 | H6: 0 | I6: 0 | J6: 0 | K6: 0 | L6: 2 | M6: 1 | N6: 1 | O6: 0 | P6: 0 | Q6: 0 | R6: 0 | S6: 0 | T6: 0 | U6: 2 | V6: 1 | W6: 1 | X6: 0 | Y6: 0 | Z6: 0 | AA6: 0 | AB6: 0 | AC6: 0 | AD6: 0 | AE6: 0 | AF6: 0 | AG6: 0 | AH6: 0 | AI6: 0 | AJ6: 0 | AK6: 0 | AL6: 0 | AM6: 1 | AN6: 0 | AO6: 1 | AP6: 0 | AQ6: 0 | AR6: 0 | AS6: 0 | AT6: 0 | AU6: 0 | AV6: 0 | AW6: 0 | AX6: 0
B7: 2 | C7: 6 | D7: 3 | E7: 3 | F7: 0 | G7: 0 | H7: 0 | I7: 0 | J7: 0 | K7: 0 | L7: 1 | M7: 0 | N7: 1 | O7: 0 | P7: 0 | Q7: 0 | R7: 0 | S7: 0 | T7: 0 | U7: 5 | V7: 3 | W7: 2 | X7: 0 | Y7: 0 | Z7: 0 | AA7: 0 | AB7: 0 | AC7: 0 | AD7: 0 | AE7: 0 | AF7: 0 | AG7: 0 | AH7: 0 | AI7: 0 | AJ7: 0 | AK7: 0 | AL7: 0 | AM7: 0 | AN7: 0 | AO7: 0 | AP7: 0 | AQ7: 0 | AR7: 0 | AS7: 0 | AT7: 0 | AU7: 0 | AV7: 0 | AW7: 0 | AX7: 0
B8: 3 | C8: 11 | D8: 5 | E8: 6 | F8: 0 | G8: 0 | H8: 0 | I8: 0 | J8: 0 | K8: 0 | L8: 1 | M8: 0 | N8: 1 | O8: 0 | P8: 0 | Q8: 0 | R8: 2 | S8: 0 | T8: 2 | U8: 6 | V8: 3 | W8: 3 | X8: 1 | Y8: 1 | Z8: 0 | AA8: 0 | AB8: 0 | AC8: 0 | AD8: 1 | AE8: 1 | AF8: 0 | AG8: 0 | AH8: 0 | AI8: 0 | AJ8: 0 | AK8: 0 | AL8: 0 | AM8: 0 | AN8: 0 | AO8: 0 | AP8: 0 | AQ8: 0 | AR8: 0 | AS8: 0 | AT8: 0 | AU8: 0 | AV8: 0 | AW8: 0 | AX8: 0
B9: 4 | C9: 16 | D9: 9 | E9: 7 | F9: 0 | G9: 0 | H9: 0 | I9: 0 | J9: 0 | K9: 0 | L9: 1 | M9: 1 | N9: 0 | O9: 2 | P9: 1 | Q9: 1 | R9: 3 | S9: 2 | T9: 1 | U9: 5 | V9: 2 | W9: 3 | X9: 5 | Y9: 3 | Z9: 2 | AA9: 0 | AB9: 0 | AC9: 0 | AD9: 0 | AE9: 0 | AF9: 0 | AG9: 0 | AH9: 0 | AI9: 0 | AJ9: 0 | AK9: 0 | AL9: 0 | AM9: 0 | AN9: 0 | AO9: 0 | AP9: 0 | AQ9: 0 | AR9: 0 | AS9: 0 | AT9: 0 | AU9: 0 | AV9: 0 | AW9: 0 | AX9: 0
B10: 5 | C10: 30 | D10: 19 | E10: 11 | F10: 1 | G10: 1 | H10: 0 | I10: 1 | J10: 1 | K10: 0 | L10: 3 | M10: 1 | N10: 2 | O10: 3 | P10: 2 | Q10: 1 | R10: 5 | S10: 3 | T10: 2 | U10: 3 | V10: 1 | W10: 2 | X10: 14 | Y10: 10 | Z10: 4 | AA10: 0 | AB10: 0 | AC10: 0 | AD10: 0 | AE10: 0 | AF10: 0 | AG10: 0 | AH10: 0 | AI10: 0 | AJ10: 0 | AK10: 0 | AL10: 0 | AM10: 0 | AN10: 0 | AO10: 0 | AP10: 0 | AQ10: 0 | AR10: 0 | AS10: 0 | AT10: 0 | AU10: 0 | AV10: 0 | AW10: 0 | AX10: 0
B11: 6 | C11: 49 | D11: 27 | E11: 22 | F11: 0 | G11: 0 | H11: 0 | I11: 1 | J11: 1 | K11: 0 | L11: 2 | M11: 1 | N11: 1 | O11: 3 | P11: 1 | Q11: 2 | R11: 7 | S11: 2 | T11: 5 | U11: 5 | V11: 1 | W11: 4 | X11: 30 | Y11: 21 | Z11: 9 | AA11: 0 | AB11: 0 | AC11: 0 | AD11: 0 | AE11: 0 | AF11: 0 | AG11: 0 | AH11: 0 | AI11: 0 | AJ11: 0 | AK11: 0 | AL11: 0 | AM11: 0 | AN11: 0 | AO11: 0 | AP11: 0 | AQ11: 0 | AR11: 0 | AS11: 1 | AT11: 0 | AU11: 1 | AV11: 0 | AW11: 0 | AX11: 0
B12: 7 | C12: 60 | D12: 42 | E12: 18 | F12: 1 | G12: 0 | H12: 1 | I12: 1 | J12: 1 | K12: 0 | L12: 0 | M12: 0 | N12: 0 | O12: 3 | P12: 2 | Q12: 1 | R12: 14 | S12: 10 | T12: 4 | U12: 10 | V12: 3 | W12: 7 | X12: 31 | Y12: 26 | Z12: 5 | AA12: 0 | AB12: 0 | AC12: 0 | AD12: 0 | AE12: 0 | AF12: 0 | AG12: 0 | AH12: 0 | AI12: 0 | AJ12: 0 | AK12: 0 | AL12: 0 | AM12: 0 | AN12: 0 | AO12: 0 | AP12: 0 | AQ12: 0 | AR12: 0 | AS12: 0 | AT12: 0 | AU12: 0 | AV12: 0 | AW12: 0 | AX12: 0
B13: 8 | C13: 60 | D13: 40 | E13: 20 | F13: 0 | G13: 0 | H13: 0 | I13: 0 | J13: 0 | K13: 0 | L13: 2 | M13: 0 | N13: 2 | O13: 2 | P13: 2 | Q13: 0 | R13: 18 | S13: 13 | T13: 5 | U13: 7 | V13: 3 | W13: 4 | X13: 30 | Y13: 21 | Z13: 9 | AA13: 0 | AB13: 0 | AC13: 0 | AD13: 0 | AE13: 0 | AF13: 0 | AG13: 0 | AH13: 0 | AI13: 0 | AJ13: 0 | AK13: 0 | AL13: 0 | AM13: 0 | AN13: 0 | AO13: 0 | AP13: 0 | AQ13: 0 | AR13: 0 | AS13: 1 | AT13: 1 | AU13: 0 | AV13: 0 | AW13: 0 | AX13: 0
B14: 9 | C14: 68 | D14: 52 | E14: 16 | F14: 0 | G14: 0 | H14: 0 | I14: 1 | J14: 0 | K14: 1 | L14: 2 | M14: 1 | N14: 1 | O14: 1 | P14: 1 | Q14: 0 | R14: 18 | S14: 14 | T14: 4 | U14: 5 | V14: 2 | W14: 3 | X14: 41 | Y14: 34 | Z14: 7 | AA14: 0 | AB14: 0 | AC14: 0 | AD14: 0 | AE14: 0 | AF14: 0 | AG14: 0 | AH14: 0 | AI14: 0 | AJ14: 0 | AK14: 0 | AL14: 0 | AM14: 0 | AN14: 0 | AO14: 0 | AP14: 0 | AQ14: 0 | AR14: 0 | AS14: 0 | AT14: 0 | AU14: 0 | AV14: 0 | AW14: 0 | AX14: 0
B15: 10 | C15: 53 | D15: 38 | E15: 15 | F15: 0 | G15: 0 | H15: 0 | I15: 1 | J15: 1 | K15: 0 | L15: 5 | M15: 1 | N15: 4 | O15: 0 | P15: 0 | Q15: 0 | R15: 22 | S15: 18 | T15: 4 | U15: 4 | V15: 2 | W15: 2 | X15: 21 | Y15: 16 | Z15: 5 | AA15: 0 | AB15: 0 | AC15: 0 | AD15: 0 | AE15: 0 | AF15: 0 | AG15: 0 | AH15: 0 | AI15: 0 | AJ15: 0 | AK15: 0 | AL15: 0 | AM15: 0 | AN15: 0 | AO15: 0 | AP15: 0 | AQ15: 0 | AR15: 0 | AS15: 0 | AT15: 0 | AU15: 0 | AV15: 0 | AW15: 0 | AX15: 0
B16: 11 | C16: 69 | D16: 45 | E16: 24 | F16: 0 | G16: 0 | H16: 0 | I16: 0 | J16: 0 | K16: 0 | L16: 2 | M16: 1 | N16: 1 | O16: 1 | P16: 1 | Q16: 0 | R16: 29 | S16: 14 | T16: 15 | U16: 11 | V16: 8 | W16: 3 | X16: 26 | Y16: 21 | Z16: 5 | AA16: 0 | AB16: 0 | AC16: 0 | AD16: 0 | AE16: 0 | AF16: 0 | AG16: 0 | AH16: 0 | AI16: 0 | AJ16: 0 | AK16: 0 | AL16: 0 | AM16: 0 | AN16: 0 | AO16: 0 | AP16: 0 | AQ16: 0 | AR16: 0 | AS16: 0 | AT16: 0 | AU16: 0 | AV16: 0 | AW16: 0 | AX16: 0
B17: 12 | C17: 57 | D17: 39 | E17: 18 | F17: 0 | G17: 0 | H17: 0 | I17: 1 | J17: 0 | K17: 1 | L17: 2 | M17: 0 | N17: 2 | O17: 0 | P17: 0 | Q17: 0 | R17: 25 | S17: 18 | T17: 7 | U17: 9 | V17: 5 | W17: 4 | X17: 18 | Y17: 14 | Z17: 4 | AA17: 0 | AB17: 0 | AC17: 0 | AD17: 0 | AE17: 0 | AF17: 0 | AG17: 1 | AH17: 1 | AI17: 0 | AJ17: 0 | AK17: 0 | AL17: 0 | AM17: 1 | AN17: 1 | AO17: 0 | AP17: 0 | AQ17: 0 | AR17: 0 | AS17: 0 | AT17: 0 | AU17: 0 | AV17: 0 | AW17: 0 | AX17: 0
B18: 13 | C18: 64 | D18: 39 | E18: 25 | F18: 1 | G18: 0 | H18: 1 | I18: 2 | J18: 2 | K18: 0 | L18: 2 | M18: 0 | N18: 2 | O18: 0 | P18: 0 | Q18: 0 | R18: 26 | S18: 14 | T18: 12 | U18: 11 | V18: 4 | W18: 7 | X18: 22 | Y18: 19 | Z18: 3 | AA18: 0 | AB18: 0 | AC18: 0 | AD18: 0 | AE18: 0 | AF18: 0 | AG18: 0 | AH18: 0 | AI18: 0 | AJ18: 0 | AK18: 0 | AL18: 0 | AM18: 0 | AN18: 0 | AO18: 0 | AP18: 0 | AQ18: 0 | AR18: 0 | AS18: 0 | AT18: 0 | AU18: 0 | AV18: 0 | AW18: 0 | AX18: 0
B19: 14 | C19: 70 | D19: 51 | E19: 19 | F19: 3 | G19: 2 | H19: 1 | I19: 3 | J19: 1 | K19: 2 | L19: 2 | M19: 1 | N19: 1 | O19: 0 | P19: 0 | Q19: 0 | R19: 32 | S19: 23 | T19: 9 | U19: 5 | V19: 3 | W19: 2 | X19: 25 | Y19: 21 | Z19: 4 | AA19: 0 | AB19: 0 | AC19: 0 | AD19: 0 | AE19: 0 | AF19: 0 | AG19: 0 | AH19: 0 | AI19: 0 | AJ19: 0 | AK19: 0 | AL19: 0 | AM19: 0 | AN19: 0 | AO19: 0 | AP19: 0 | AQ19: 0 | AR19: 0 | AS19: 0 | AT19: 0 | AU19: 0 | AV19: 0 | AW19: 0 | AX19: 0
B20: 15 | C20: 65 | D20: 46 | E20: 19 | F20: 1 | G20: 1 | H20: 0 | I20: 1 | J20: 0 | K20: 1 | L20: 0 | M20: 0 | N20: 0 | O20: 2 | P20: 2 | Q20: 0 | R20: 29 | S20: 18 | T20: 11 | U20: 7 | V20: 5 | W20: 2 | X20: 25 | Y20: 20 | Z20: 5 | AA20: 0 | AB20: 0 | AC20: 0 | AD20: 0 | AE20: 0 | AF20: 0 | AG20: 0 | AH20: 0 | AI20: 0 | AJ20: 0 | AK20: 0 | AL20: 0 | AM20: 0 | AN20: 0 | AO20: 0 | AP20: 0 | AQ20: 0 | AR20: 0 | AS20: 0 | AT20: 0 | AU20: 0 | AV20: 0 | AW20: 0 | AX20: 0
B21: 16 | C21: 56 | D21: 36 | E21: 20 | F21: 4 | G21: 3 | H21: 1 | I21: 2 | J21: 1 | K21: 1 | L21: 1 | M21: 1 | N21: 0 | O21: 0 | P21: 0 | Q21: 0 | R21: 24 | S21: 12 | T21: 12 | U21: 4 | V21: 3 | W21: 1 | X21: 18 | Y21: 14 | Z21: 4 | AA21: 0 | AB21: 0 | AC21: 0 | AD21: 0 | AE21: 0 | AF21: 0 | AG21: 1 | AH21: 1 | AI21: 0 | AJ21: 0 | AK21: 0 | AL21: 0 | AM21: 1 | AN21: 1 | AO21: 0 | AP21: 0 | AQ21: 0 | AR21: 0 | AS21: 1 | AT21: 0 | AU21: 1 | AV21: 0 | AW21: 0 | AX21: 0
B22: 17 | C22: 56 | D22: 42 | E22: 14 | F22: 1 | G22: 1 | H22: 0 | I22: 2 | J22: 0 | K22: 2 | L22: 1 | M22: 0 | N22: 1 | O22: 0 | P22: 0 | Q22: 0 | R22: 32 | S22: 27 | T22: 5 | U22: 7 | V22: 5 | W22: 2 | X22: 13 | Y22: 9 | Z22: 4 | AA22: 0 | AB22: 0 | AC22: 0 | AD22: 0 | AE22: 0 | AF22: 0 | AG22: 0 | AH22: 0 | AI22: 0 | AJ22: 0 | AK22: 0 | AL22: 0 | AM22: 0 | AN22: 0 | AO22: 0 | AP22: 0 | AQ22: 0 | AR22: 0 | AS22: 0 | AT22: 0 | AU22: 0 | AV22: 0 | AW22: 0 | AX22: 0
B23: 18 | C23: 54 | D23: 36 | E23: 18 | F23: 3 | G23: 0 | H23: 3 | I23: 1 | J23: 1 | K23: 0 | L23: 1 | M23: 1 | N23: 0 | O23: 0 | P23: 0 | Q23: 0 | R23: 35 | S23: 24 | T23: 11 | U23: 5 | V23: 2 | W23: 3 | X23: 8 | Y23: 7 | Z23: 1 | AA23: 0 | AB23: 0 | AC23: 0 | AD23: 0 | AE23: 0 | AF23: 0 | AG23: 0 | AH23: 0 | AI23: 0 | AJ23: 0 | AK23: 0 | AL23: 0 | AM23: 1 | AN23: 1 | AO23: 0 | AP23: 0 | AQ23: 0 | AR23: 0 | AS23: 0 | AT23: 0 | AU23: 0 | AV23: 0 | AW23: 0 | AX23: 0
B24: 19 | C24: 49 | D24: 31 | E24: 18 | F24: 4 | G24: 3 | H24: 1 | I24: 1 | J24: 1 | K24: 0 | L24: 1 | M24: 0 | N24: 1 | O24: 0 | P24: 0 | Q24: 0 | R24: 32 | S24: 21 | T24: 11 | U24: 4 | V24: 1 | W24: 3 | X24: 6 | Y24: 5 | Z24: 1 | AA24: 0 | AB24: 0 | AC24: 0 | AD24: 0 | AE24: 0 | AF24: 0 | AG24: 0 | AH24: 0 | AI24: 0 | AJ24: 0 | AK24: 0 | AL24: 0 | AM24: 1 | AN24: 0 | AO24: 1 | AP24: 0 | AQ24: 0 | AR24: 0 | AS24: 0 | AT24: 0 | AU24: 0 | AV24: 0 | AW24: 0 | AX24: 0
B25: 20 | C25: 53 | D25: 30 | E25: 23 | F25: 8 | G25: 1 | H25: 7 | I25: 2 | J25: 1 | K25: 1 | L25: 4 | M25: 2 | N25: 2 | O25: 0 | P25: 0 | Q25: 0 | R25: 29 | S25: 19 | T25: 10 | U25: 1 | V25: 0 | W25: 1 | X25: 7 | Y25: 6 | Z25: 1 | AA25: 0 | AB25: 0 | AC25: 0 | AD25: 1 | AE25: 1 | AF25: 0 | AG25: 1 | AH25: 0 | AI25: 1 | AJ25: 0 | AK25: 0 | AL25: 0 | AM25: 0 | AN25: 0 | AO25: 0 | AP25: 0 | AQ25: 0 | AR25: 0 | AS25: 0 | AT25: 0 | AU25: 0 | AV25: 0 | AW25: 0 | AX25: 0
B26: 21 | C26: 72 | D26: 47 | E26: 25 | F26: 4 | G26: 3 | H26: 1 | I26: 1 | J26: 0 | K26: 1 | L26: 4 | M26: 1 | N26: 3 | O26: 1 | P26: 1 | Q26: 0 | R26: 41 | S26: 24 | T26: 17 | U26: 7 | V26: 5 | W26: 2 | X26: 12 | Y26: 12 | Z26: 0 | AA26: 1 | AB26: 1 | AC26: 0 | AD26: 1 | AE26: 0 | AF26: 1 | AG26: 0 | AH26: 0 | AI26: 0 | AJ26: 0 | AK26: 0 | AL26: 0 | AM26: 0 | AN26: 0 | AO26: 0 | AP26: 0 | AQ26: 0 | AR26: 0 | AS26: 0 | AT26: 0 | AU26: 0 | AV26: 0 | AW26: 0 | AX26: 0
B27: 22 | C27: 75 | D27: 45 | E27: 30 | F27: 8 | G27: 7 | H27: 1 | I27: 1 | J27: 1 | K27: 0 | L27: 3 | M27: 0 | N27: 3 | O27: 1 | P27: 1 | Q27: 0 | R27: 44 | S27: 23 | T27: 21 | U27: 8 | V27: 4 | W27: 4 | X27: 5 | Y27: 5 | Z27: 0 | AA27: 0 | AB27: 0 | AC27: 0 | AD27: 1 | AE27: 1 | AF27: 0 | AG27: 2 | AH27: 2 | AI27: 0 | AJ27: 0 | AK27: 0 | AL27: 0 | AM27: 2 | AN27: 1 | AO27: 1 | AP27: 0 | AQ27: 0 | AR27: 0 | AS27: 0 | AT27: 0 | AU27: 0 | AV27: 0 | AW27: 0 | AX27: 0
B28: 23 | C28: 67 | D28: 42 | E28: 25 | F28: 6 | G28: 1 | H28: 5 | I28: 5 | J28: 4 | K28: 1 | L28: 5 | M28: 1 | N28: 4 | O28: 0 | P28: 0 | Q28: 0 | R28: 32 | S28: 24 | T28: 8 | U28: 6 | V28: 2 | W28: 4 | X28: 8 | Y28: 8 | Z28: 0 | AA28: 1 | AB28: 1 | AC28: 0 | AD28: 0 | AE28: 0 | AF28: 0 | AG28: 2 | AH28: 1 | AI28: 1 | AJ28: 0 | AK28: 0 | AL28: 0 | AM28: 2 | AN28: 0 | AO28: 2 | AP28: 0 | AQ28: 0 | AR28: 0 | AS28: 0 | AT28: 0 | AU28: 0 | AV28: 0 | AW28: 0 | AX28: 0
B29: 24 | C29: 87 | D29: 54 | E29: 33 | F29: 8 | G29: 5 | H29: 3 | I29: 5 | J29: 2 | K29: 3 | L29: 5 | M29: 4 | N29: 1 | O29: 0 | P29: 0 | Q29: 0 | R29: 49 | S29: 30 | T29: 19 | U29: 2 | V29: 2 | W29: 0 | X29: 11 | Y29: 9 | Z29: 2 | AA29: 4 | AB29: 2 | AC29: 2 | AD29: 1 | AE29: 0 | AF29: 1 | AG29: 0 | AH29: 0 | AI29: 0 | AJ29: 0 | AK29: 0 | AL29: 0 | AM29: 2 | AN29: 0 | AO29: 2 | AP29: 0 | AQ29: 0 | AR29: 0 | AS29: 0 | AT29: 0 | AU29: 0 | AV29: 0 | AW29: 0 | AX29: 0
B30: 25 | C30: 94 | D30: 58 | E30: 36 | F30: 10 | G30: 3 | H30: 7 | I30: 4 | J30: 3 | K30: 1 | L30: 6 | M30: 3 | N30: 3 | O30: 0 | P30: 0 | Q30: 0 | R30: 41 | S30: 28 | T30: 13 | U30: 7 | V30: 5 | W30: 2 | X30: 15 | Y30: 12 | Z30: 3 | AA30: 5 | AB30: 2 | AC30: 3 | AD30: 1 | AE30: 1 | AF30: 0 | AG30: 2 | AH30: 0 | AI30: 2 | AJ30: 1 | AK30: 1 | AL30: 0 | AM30: 1 | AN30: 0 | AO30: 1 | AP30: 0 | AQ30: 0 | AR30: 0 | AS30: 0 | AT30: 0 | AU30: 0 | AV30: 1 | AW30: 0 | AX30: 1
B31: 26 | C31: 89 | D31: 60 | E31: 29 | F31: 4 | G31: 1 | H31: 3 | I31: 5 | J31: 2 | K31: 3 | L31: 8 | M31: 5 | N31: 3 | O31: 0 | P31: 0 | Q31: 0 | R31: 40 | S31: 27 | T31: 13 | U31: 10 | V31: 6 | W31: 4 | X31: 17 | Y31: 16 | Z31: 1 | AA31: 1 | AB31: 1 | AC31: 0 | AD31: 0 | AE31: 0 | AF31: 0 | AG31: 1 | AH31: 1 | AI31: 0 | AJ31: 0 | AK31: 0 | AL31: 0 | AM31: 3 | AN31: 1 | AO31: 2 | AP31: 0 | AQ31: 0 | AR31: 0 | AS31: 0 | AT31: 0 | AU31: 0 | AV31: 0 | AW31: 0 | AX31: 0
B32: 27 | C32: 97 | D32: 57 | E32: 40 | F32: 12 | G32: 6 | H32: 6 | I32: 7 | J32: 4 | K32: 3 | L32: 4 | M32: 0 | N32: 4 | O32: 2 | P32: 2 | Q32: 0 | R32: 54 | S32: 34 | T32: 20 | U32: 6 | V32: 3 | W32: 3 | X32: 6 | Y32: 5 | Z32: 1 | AA32: 3 | AB32: 1 | AC32: 2 | AD32: 2 | AE32: 1 | AF32: 1 | AG32: 0 | AH32: 0 | AI32: 0 | AJ32: 0 | AK32: 0 | AL32: 0 | AM32: 0 | AN32: 0 | AO32: 0 | AP32: 0 | AQ32: 0 | AR32: 0 | AS32: 0 | AT32: 0 | AU32: 0 | AV32: 1 | AW32: 1 | AX32: 0
B33: 28 | C33: 92 | D33: 55 | E33: 37 | F33: 10 | G33: 3 | H33: 7 | I33: 14 | J33: 9 | K33: 5 | L33: 6 | M33: 4 | N33: 2 | O33: 2 | P33: 2 | Q33: 0 | R33: 38 | S33: 23 | T33: 15 | U33: 8 | V33: 4 | W33: 4 | X33: 7 | Y33: 7 | Z33: 0 | AA33: 7 | AB33: 3 | AC33: 4 | AD33: 0 | AE33: 0 | AF33: 0 | AG33: 0 | AH33: 0 | AI33: 0 | AJ33: 0 | AK33: 0 | AL33: 0 | AM33: 0 | AN33: 0 | AO33: 0 | AP33: 0 | AQ33: 0 | AR33: 0 | AS33: 0 | AT33: 0 | AU33: 0 | AV33: 0 | AW33: 0 | AX33: 0
B34: 29 | C34: 108 | D34: 65 | E34: 43 | F34: 14 | G34: 5 | H34: 9 | I34: 10 | J34: 7 | K34: 3 | L34: 6 | M34: 3 | N34: 3 | O34: 0 | P34: 0 | Q34: 0 | R34: 50 | S34: 29 | T34: 21 | U34: 6 | V34: 4 | W34: 2 | X34: 13 | Y34: 10 | Z34: 3 | AA34: 7 | AB34: 5 | AC34: 2 | AD34: 1 | AE34: 1 | AF34: 0 | AG34: 0 | AH34: 0 | AI34: 0 | AJ34: 0 | AK34: 0 | AL34: 0 | AM34: 1 | AN34: 1 | AO34: 0 | AP34: 0 | AQ34: 0 | AR34: 0 | AS34: 0 | AT34: 0 | AU34: 0 | AV34: 0 | AW34: 0 | AX34: 0
B35: 30 | C35: 98 | D35: 70 | E35: 28 | F35: 14 | G35: 10 | H35: 4 | I35: 9 | J35: 9 | K35: 0 | L35: 6 | M35: 4 | N35: 2 | O35: 0 | P35: 0 | Q35: 0 | R35: 42 | S35: 30 | T35: 12 | U35: 6 | V35: 3 | W35: 3 | X35: 9 | Y35: 8 | Z35: 1 | AA35: 5 | AB35: 3 | AC35: 2 | AD35: 4 | AE35: 1 | AF35: 3 | AG35: 1 | AH35: 1 | AI35: 0 | AJ35: 0 | AK35: 0 | AL35: 0 | AM35: 0 | AN35: 0 | AO35: 0 | AP35: 0 | AQ35: 0 | AR35: 0 | AS35: 1 | AT35: 1 | AU35: 0 | AV35: 1 | AW35: 0 | AX35: 1
B36: 31 | C36: 110 | D36: 69 | E36: 41 | F36: 8 | G36: 4 | H36: 4 | I36: 9 | J36: 7 | K36: 2 | L36: 4 | M36: 2 | N36: 2 | O36: 0 | P36: 0 | Q36: 0 | R36: 52 | S36: 30 | T36: 22 | U36: 12 | V36: 6 | W36: 6 | X36: 12 | Y36: 12 | Z36: 0 | AA36: 6 | AB36: 5 | AC36: 1 | AD36: 4 | AE36: 2 | AF36: 2 | AG36: 0 | AH36: 0 | AI36: 0 | AJ36: 0 | AK36: 0 | AL36: 0 | AM36: 0 | AN36: 0 | AO36: 0 | AP36: 0 | AQ36: 0 | AR36: 0 | AS36: 1 | AT36: 0 | AU36: 1 | AV36: 2 | AW36: 1 | AX36: 1
B37: 32 | C37: 101 | D37: 64 | E37: 37 | F37: 16 | G37: 9 | H37: 7 | I37: 11 | J37: 6 | K37: 5 | L37: 4 | M37: 2 | N37: 2 | O37: 1 | P37: 0 | Q37: 1 | R37: 51 | S37: 36 | T37: 15 | U37: 6 | V37: 4 | W37: 2 | X37: 5 | Y37: 4 | Z37: 1 | AA37: 4 | AB37: 1 | AC37: 3 | AD37: 2 | AE37: 1 | AF37: 1 | AG37: 0 | AH37: 0 | AI37: 0 | AJ37: 0 | AK37: 0 | AL37: 0 | AM37: 0 | AN37: 0 | AO37: 0 | AP37: 1 | AQ37: 1 | AR37: 0 | AS37: 0 | AT37: 0 | AU37: 0 | AV37: 0 | AW37: 0 | AX37: 0
B38: 33 | C38: 134 | D38: 82 | E38: 52 | F38: 19 | G38: 12 | H38: 7 | I38: 13 | J38: 10 | K38: 3 | L38: 8 | M38: 5 | N38: 3 | O38: 2 | P38: 1 | Q38: 1 | R38: 53 | S38: 32 | T38: 21 | U38: 11 | V38: 6 | W38: 5 | X38: 8 | Y38: 7 | Z38: 1 | AA38: 11 | AB38: 6 | AC38: 5 | AD38: 5 | AE38: 3 | AF38: 2 | AG38: 2 | AH38: 0 | AI38: 2 | AJ38: 0 | AK38: 0 | AL38: 0 | AM38: 0 | AN38: 0 | AO38: 0 | AP38: 0 | AQ38: 0 | AR38: 0 | AS38: 1 | AT38: 0 | AU38: 1 | AV38: 1 | AW38: 0 | AX38: 1
B39: 34 | C39: 107 | D39: 73 | E39: 34 | F39: 16 | G39: 12 | H39: 4 | I39: 10 | J39: 7 | K39: 3 | L39: 7 | M39: 4 | N39: 3 | O39: 0 | P39: 0 | Q39: 0 | R39: 39 | S39: 26 | T39: 13 | U39: 10 | V39: 7 | W39: 3 | X39: 10 | Y39: 9 | Z39: 1 | AA39: 9 | AB39: 6 | AC39: 3 | AD39: 4 | AE39: 2 | AF39: 2 | AG39: 2 | AH39: 0 | AI39: 2 | AJ39: 0 | AK39: 0 | AL39: 0 | AM39: 0 | AN39: 0 | AO39: 0 | AP39: 0 | AQ39: 0 | AR39: 0 | AS39: 0 | AT39: 0 | AU39: 0 | AV39: 0 | AW39: 0 | AX39: 0
B40: 35 | C40: 100 | D40: 64 | E40: 36 | F40: 15 | G40: 10 | H40: 5 | I40: 11 | J40: 8 | K40: 3 | L40: 6 | M40: 2 | N40: 4 | O40: 0 | P40: 0 | Q40: 0 | R40: 33 | S40: 22 | T40: 11 | U40: 6 | V40: 4 | W40: 2 | X40: 9 | Y40: 9 | Z40: 0 | AA40: 14 | AB40: 5 | AC40: 9 | AD40: 4 | AE40: 3 | AF40: 1 | AG40: 0 | AH40: 0 | AI40: 0 | AJ40: 0 | AK40: 0 | AL40: 0 | AM40: 1 | AN40: 0 | AO40: 1 | AP40: 0 | AQ40: 0 | AR40: 0 | AS40: 0 | AT40: 0 | AU40: 0 | AV40: 1 | AW40: 1 | AX40: 0
B41: 36 | C41: 91 | D41: 60 | E41: 31 | F41: 20 | G41: 15 | H41: 5 | I41: 11 | J41: 9 | K41: 2 | L41: 5 | M41: 1 | N41: 4 | O41: 0 | P41: 0 | Q41: 0 | R41: 28 | S41: 20 | T41: 8 | U41: 9 | V41: 4 | W41: 5 | X41: 7 | Y41: 5 | Z41: 2 | AA41: 9 | AB41: 4 | AC41: 5 | AD41: 1 | AE41: 1 | AF41: 0 | AG41: 0 | AH41: 0 | AI41: 0 | AJ41: 0 | AK41: 0 | AL41: 0 | AM41: 1 | AN41: 1 | AO41: 0 | AP41: 0 | AQ41: 0 | AR41: 0 | AS41: 0 | AT41: 0 | AU41: 0 | AV41: 0 | AW41: 0 | AX41: 0
B42: 37 | C42: 105 | D42: 71 | E42: 34 | F42: 27 | G42: 18 | H42: 9 | I42: 9 | J42: 5 | K42: 4 | L42: 3 | M42: 2 | N42: 1 | O42: 1 | P42: 0 | Q42: 1 | R42: 37 | S42: 27 | T42: 10 | U42: 10 | V42: 8 | W42: 2 | X42: 6 | Y42: 6 | Z42: 0 | AA42: 5 | AB42: 2 | AC42: 3 | AD42: 5 | AE42: 3 | AF42: 2 | AG42: 1 | AH42: 0 | AI42: 1 | AJ42: 0 | AK42: 0 | AL42: 0 | AM42: 0 | AN42: 0 | AO42: 0 | AP42: 0 | AQ42: 0 | AR42: 0 | AS42: 0 | AT42: 0 | AU42: 0 | AV42: 1 | AW42: 0 | AX42: 1
B43: 38 | C43: 109 | D43: 68 | E43: 41 | F43: 25 | G43: 14 | H43: 11 | I43: 11 | J43: 7 | K43: 4 | L43: 3 | M43: 2 | N43: 1 | O43: 0 | P43: 0 | Q43: 0 | R43: 32 | S43: 22 | T43: 10 | U43: 11 | V43: 8 | W43: 3 | X43: 6 | Y43: 6 | Z43: 0 | AA43: 11 | AB43: 6 | AC43: 5 | AD43: 5 | AE43: 1 | AF43: 4 | AG43: 1 | AH43: 0 | AI43: 1 | AJ43: 0 | AK43: 0 | AL43: 0 | AM43: 0 | AN43: 0 | AO43: 0 | AP43: 1 | AQ43: 1 | AR43: 0 | AS43: 2 | AT43: 1 | AU43: 1 | AV43: 1 | AW43: 0 | AX43: 1
B44: 39 | C44: 110 | D44: 62 | E44: 48 | F44: 27 | G44: 14 | H44: 13 | I44: 22 | J44: 13 | K44: 9 | L44: 4 | M44: 2 | N44: 2 | O44: 2 | P44: 2 | Q44: 0 | R44: 27 | S44: 14 | T44: 13 | U44: 5 | V44: 5 | W44: 0 | X44: 4 | Y44: 4 | Z44: 0 | AA44: 11 | AB44: 6 | AC44: 5 | AD44: 4 | AE44: 2 | AF44: 2 | AG44: 0 | AH44: 0 | AI44: 0 | AJ44: 1 | AK44: 0 | AL44: 1 | AM44: 1 | AN44: 0 | AO44: 1 | AP44: 0 | AQ44: 0 | AR44: 0 | AS44: 1 | AT44: 0 | AU44: 1 | AV44: 1 | AW44: 0 | AX44: 1
B45: 40 | C45: 107 | D45: 69 | E45: 38 | F45: 36 | G45: 23 | H45: 13 | I45: 13 | J45: 8 | K45: 5 | L45: 2 | M45: 2 | N45: 0 | O45: 0 | P45: 0 | Q45: 0 | R45: 22 | S45: 14 | T45: 8 | U45: 9 | V45: 5 | W45: 4 | X45: 4 | Y45: 3 | Z45: 1 | AA45: 13 | AB45: 10 | AC45: 3 | AD45: 5 | AE45: 2 | AF45: 3 | AG45: 0 | AH45: 0 | AI45: 0 | AJ45: 0 | AK45: 0 | AL45: 0 | AM45: 1 | AN45: 1 | AO45: 0 | AP45: 0 | AQ45: 0 | AR45: 0 | AS45: 0 | AT45: 0 | AU45: 0 | AV45: 2 | AW45: 1 | AX45: 1
A46: 합계 | B46: 41 | C46: 101 | D46: 60 | E46: 41 | F46: 27 | G46: 19 | H46: 8 | I46: 10 | J46: 6 | K46: 4 | L46: 3 | M46: 0 | N46: 3 | O46: 1 | P46: 0 | Q46: 1 | R46: 26 | S46: 17 | T46: 9 | U46: 14 | V46: 9 | W46: 5 | X46: 0 | Y46: 0 | Z46: 0 | AA46: 12 | AB46: 7 | AC46: 5 | AD46: 7 | AE46: 2 | AF46: 5 | AG46: 0 | AH46: 0 | AI46: 0 | AJ46: 0 | AK46: 0 | AL46: 0 | AM46: 0 | AN46: 0 | AO46: 0 | AP46: 0 | AQ46: 0 | AR46: 0 | AS46: 0 | AT46: 0 | AU46: 0 | AV46: 1 | AW46: 0 | AX46: 1
B47: 42 | C47: 124 | D47: 91 | E47: 33 | F47: 39 | G47: 32 | H47: 7 | I47: 18 | J47: 16 | K47: 2 | L47: 2 | M47: 2 | N47: 0 | O47: 0 | P47: 0 | Q47: 0 | R47: 25 | S47: 15 | T47: 10 | U47: 14 | V47: 9 | W47: 5 | X47: 1 | Y47: 0 | Z47: 1 | AA47: 13 | AB47: 9 | AC47: 4 | AD47: 6 | AE47: 2 | AF47: 4 | AG47: 2 | AH47: 2 | AI47: 0 | AJ47: 1 | AK47: 1 | AL47: 0 | AM47: 0 | AN47: 0 | AO47: 0 | AP47: 0 | AQ47: 0 | AR47: 0 | AS47: 1 | AT47: 1 | AU47: 0 | AV47: 2 | AW47: 2 | AX47: 0
B48: 43 | C48: 145 | D48: 94 | E48: 51 | F48: 49 | G48: 41 | H48: 8 | I48: 15 | J48: 11 | K48: 4 | L48: 8 | M48: 3 | N48: 5 | O48: 2 | P48: 1 | Q48: 1 | R48: 31 | S48: 16 | T48: 15 | U48: 10 | V48: 6 | W48: 4 | X48: 2 | Y48: 2 | Z48: 0 | AA48: 16 | AB48: 9 | AC48: 7 | AD48: 8 | AE48: 4 | AF48: 4 | AG48: 0 | AH48: 0 | AI48: 0 | AJ48: 0 | AK48: 0 | AL48: 0 | AM48: 1 | AN48: 0 | AO48: 1 | AP48: 0 | AQ48: 0 | AR48: 0 | AS48: 0 | AT48: 0 | AU48: 0 | AV48: 3 | AW48: 1 | AX48: 2
B49: 44 | C49: 160 | D49: 113 | E49: 47 | F49: 45 | G49: 35 | H49: 10 | I49: 26 | J49: 19 | K49: 7 | L49: 8 | M49: 5 | N49: 3 | O49: 1 | P49: 0 | Q49: 1 | R49: 41 | S49: 32 | T49: 9 | U49: 15 | V49: 10 | W49: 5 | X49: 1 | Y49: 0 | Z49: 1 | AA49: 15 | AB49: 6 | AC49: 9 | AD49: 8 | AE49: 6 | AF49: 2 | AG49: 0 | AH49: 0 | AI49: 0 | AJ49: 0 | AK49: 0 | AL49: 0 | AM49: 0 | AN49: 0 | AO49: 0 | AP49: 0 | AQ49: 0 | AR49: 0 | AS49: 0 | AT49: 0 | AU49: 0 | AV49: 0 | AW49: 0 | AX49: 0
B50: 45 | C50: 144 | D50: 93 | E50: 51 | F50: 48 | G50: 34 | H50: 14 | I50: 14 | J50: 10 | K50: 4 | L50: 13 | M50: 8 | N50: 5 | O50: 0 | P50: 0 | Q50: 0 | R50: 26 | S50: 15 | T50: 11 | U50: 13 | V50: 7 | W50: 6 | X50: 2 | Y50: 2 | Z50: 0 | AA50: 17 | AB50: 10 | AC50: 7 | AD50: 9 | AE50: 6 | AF50: 3 | AG50: 0 | AH50: 0 | AI50: 0 | AJ50: 0 | AK50: 0 | AL50: 0 | AM50: 1 | AN50: 1 | AO50: 0 | AP50: 0 | AQ50: 0 | AR50: 0 | AS50: 0 | AT50: 0 | AU50: 0 | AV50: 1 | AW50: 0 | AX50: 1
B51: 46 | C51: 158 | D51: 109 | E51: 49 | F51: 71 | G51: 58 | H51: 13 | I51: 14 | J51: 7 | K51: 7 | L51: 6 | M51: 2 | N51: 4 | O51: 0 | P51: 0 | Q51: 0 | R51: 23 | S51: 13 | T51: 10 | U51: 15 | V51: 13 | W51: 2 | X51: 0 | Y51: 0 | Z51: 0 | AA51: 16 | AB51: 8 | AC51: 8 | AD51: 9 | AE51: 6 | AF51: 3 | AG51: 1 | AH51: 1 | AI51: 0 | AJ51: 0 | AK51: 0 | AL51: 0 | AM51: 2 | AN51: 1 | AO51: 1 | AP51: 0 | AQ51: 0 | AR51: 0 | AS51: 1 | AT51: 0 | AU51: 1 | AV51: 0 | AW51: 0 | AX51: 0
B52: 47 | C52: 154 | D52: 107 | E52: 47 | F52: 62 | G52: 46 | H52: 16 | I52: 18 | J52: 13 | K52: 5 | L52: 7 | M52: 3 | N52: 4 | O52: 1 | P52: 1 | Q52: 0 | R52: 25 | S52: 16 | T52: 9 | U52: 12 | V52: 7 | W52: 5 | X52: 0 | Y52: 0 | Z52: 0 | AA52: 19 | AB52: 14 | AC52: 5 | AD52: 7 | AE52: 4 | AF52: 3 | AG52: 1 | AH52: 1 | AI52: 0 | AJ52: 0 | AK52: 0 | AL52: 0 | AM52: 1 | AN52: 1 | AO52: 0 | AP52: 0 | AQ52: 0 | AR52: 0 | AS52: 0 | AT52: 0 | AU52: 0 | AV52: 1 | AW52: 1 | AX52: 0
B53: 48 | C53: 170 | D53: 118 | E53: 52 | F53: 49 | G53: 39 | H53: 10 | I53: 19 | J53: 10 | K53: 9 | L53: 5 | M53: 1 | N53: 4 | O53: 2 | P53: 2 | Q53: 0 | R53: 36 | S53: 22 | T53: 14 | U53: 19 | V53: 14 | W53: 5 | X53: 0 | Y53: 0 | Z53: 0 | AA53: 26 | AB53: 19 | AC53: 7 | AD53: 7 | AE53: 6 | AF53: 1 | AG53: 0 | AH53: 0 | AI53: 0 | AJ53: 1 | AK53: 1 | AL53: 0 | AM53: 3 | AN53: 2 | AO53: 1 | AP53: 2 | AQ53: 1 | AR53: 1 | AS53: 0 | AT53: 0 | AU53: 0 | AV53: 1 | AW53: 1 | AX53: 0
B54: 49 | C54: 188 | D54: 137 | E54: 51 | F54: 73 | G54: 60 | H54: 13 | I54: 25 | J54: 13 | K54: 12 | L54: 11 | M54: 4 | N54: 7 | O54: 0 | P54: 0 | Q54: 0 | R54: 36 | S54: 29 | T54: 7 | U54: 13 | V54: 9 | W54: 4 | X54: 1 | Y54: 1 | Z54: 0 | AA54: 17 | AB54: 13 | AC54: 4 | AD54: 7 | AE54: 5 | AF54: 2 | AG54: 0 | AH54: 0 | AI54: 0 | AJ54: 1 | AK54: 1 | AL54: 0 | AM54: 1 | AN54: 0 | AO54: 1 | AP54: 1 | AQ54: 1 | AR54: 0 | AS54: 1 | AT54: 1 | AU54: 0 | AV54: 1 | AW54: 0 | AX54: 1
B55: 50 | C55: 205 | D55: 136 | E55: 69 | F55: 64 | G55: 52 | H55: 12 | I55: 25 | J55: 19 | K55: 6 | L55: 9 | M55: 3 | N55: 6 | O55: 4 | P55: 2 | Q55: 2 | R55: 30 | S55: 16 | T55: 14 | U55: 25 | V55: 13 | W55: 12 | X55: 2 | Y55: 2 | Z55: 0 | AA55: 31 | AB55: 18 | AC55: 13 | AD55: 12 | AE55: 10 | AF55: 2 | AG55: 0 | AH55: 0 | AI55: 0 | AJ55: 0 | AK55: 0 | AL55: 0 | AM55: 1 | AN55: 1 | AO55: 0 | AP55: 0 | AQ55: 0 | AR55: 0 | AS55: 1 | AT55: 0 | AU55: 1 | AV55: 1 | AW55: 0 | AX55: 1
B56: 51 | C56: 228 | D56: 150 | E56: 78 | F56: 83 | G56: 60 | H56: 23 | I56: 27 | J56: 18 | K56: 9 | L56: 9 | M56: 1 | N56: 8 | O56: 4 | P56: 3 | Q56: 1 | R56: 28 | S56: 20 | T56: 8 | U56: 25 | V56: 17 | W56: 8 | X56: 0 | Y56: 0 | Z56: 0 | AA56: 31 | AB56: 20 | AC56: 11 | AD56: 12 | AE56: 6 | AF56: 6 | AG56: 0 | AH56: 0 | AI56: 0 | AJ56: 1 | AK56: 1 | AL56: 0 | AM56: 2 | AN56: 2 | AO56: 0 | AP56: 1 | AQ56: 0 | AR56: 1 | AS56: 1 | AT56: 1 | AU56: 0 | AV56: 4 | AW56: 1 | AX56: 3
B57: 52 | C57: 261 | D57: 186 | E57: 75 | F57: 89 | G57: 71 | H57: 18 | I57: 41 | J57: 29 | K57: 12 | L57: 13 | M57: 7 | N57: 6 | O57: 5 | P57: 3 | Q57: 2 | R57: 25 | S57: 19 | T57: 6 | U57: 28 | V57: 19 | W57: 9 | X57: 0 | Y57: 0 | Z57: 0 | AA57: 38 | AB57: 22 | AC57: 16 | AD57: 13 | AE57: 12 | AF57: 1 | AG57: 2 | AH57: 1 | AI57: 1 | AJ57: 0 | AK57: 0 | AL57: 0 | AM57: 2 | AN57: 1 | AO57: 1 | AP57: 1 | AQ57: 0 | AR57: 1 | AS57: 0 | AT57: 0 | AU57: 0 | AV57: 4 | AW57: 2 | AX57: 2
B58: 53 | C58: 265 | D58: 180 | E58: 85 | F58: 91 | G58: 71 | H58: 20 | I58: 23 | J58: 16 | K58: 7 | L58: 14 | M58: 9 | N58: 5 | O58: 2 | P58: 1 | Q58: 1 | R58: 35 | S58: 22 | T58: 13 | U58: 30 | V58: 22 | W58: 8 | X58: 1 | Y58: 1 | Z58: 0 | AA58: 39 | AB58: 20 | AC58: 19 | AD58: 19 | AE58: 10 | AF58: 9 | AG58: 0 | AH58: 0 | AI58: 0 | AJ58: 1 | AK58: 1 | AL58: 0 | AM58: 3 | AN58: 2 | AO58: 1 | AP58: 2 | AQ58: 1 | AR58: 1 | AS58: 2 | AT58: 2 | AU58: 0 | AV58: 3 | AW58: 2 | AX58: 1
B59: 54 | C59: 316 | D59: 207 | E59: 109 | F59: 115 | G59: 85 | H59: 30 | I59: 40 | J59: 25 | K59: 15 | L59: 14 | M59: 5 | N59: 9 | O59: 3 | P59: 3 | Q59: 0 | R59: 37 | S59: 27 | T59: 10 | U59: 20 | V59: 13 | W59: 7 | X59: 0 | Y59: 0 | Z59: 0 | AA59: 47 | AB59: 24 | AC59: 23 | AD59: 25 | AE59: 18 | AF59: 7 | AG59: 2 | AH59: 1 | AI59: 1 | AJ59: 2 | AK59: 0 | AL59: 2 | AM59: 7 | AN59: 4 | AO59: 3 | AP59: 1 | AQ59: 0 | AR59: 1 | AS59: 2 | AT59: 1 | AU59: 1 | AV59: 1 | AW59: 1 | AX59: 0
B60: 55 | C60: 283 | D60: 179 | E60: 104 | F60: 112 | G60: 76 | H60: 36 | I60: 30 | J60: 21 | K60: 9 | L60: 13 | M60: 7 | N60: 6 | O60: 1 | P60: 1 | Q60: 0 | R60: 26 | S60: 17 | T60: 9 | U60: 31 | V60: 20 | W60: 11 | X60: 0 | Y60: 0 | Z60: 0 | AA60: 34 | AB60: 20 | AC60: 14 | AD60: 24 | AE60: 12 | AF60: 12 | AG60: 0 | AH60: 0 | AI60: 0 | AJ60: 0 | AK60: 0 | AL60: 0 | AM60: 5 | AN60: 4 | AO60: 1 | AP60: 0 | AQ60: 0 | AR60: 0 | AS60: 3 | AT60: 1 | AU60: 2 | AV60: 4 | AW60: 0 | AX60: 4
B61: 56 | C61: 335 | D61: 229 | E61: 106 | F61: 144 | G61: 108 | H61: 36 | I61: 47 | J61: 27 | K61: 20 | L61: 12 | M61: 8 | N61: 4 | O61: 2 | P61: 1 | Q61: 1 | R61: 22 | S61: 16 | T61: 6 | U61: 32 | V61: 23 | W61: 9 | X61: 0 | Y61: 0 | Z61: 0 | AA61: 43 | AB61: 26 | AC61: 17 | AD61: 21 | AE61: 13 | AF61: 8 | AG61: 0 | AH61: 0 | AI61: 0 | AJ61: 2 | AK61: 1 | AL61: 1 | AM61: 6 | AN61: 4 | AO61: 2 | AP61: 0 | AQ61: 0 | AR61: 0 | AS61: 2 | AT61: 1 | AU61: 1 | AV61: 2 | AW61: 1 | AX61: 1
B62: 57 | C62: 315 | D62: 222 | E62: 93 | F62: 134 | G62: 101 | H62: 33 | I62: 36 | J62: 25 | K62: 11 | L62: 19 | M62: 11 | N62: 8 | O62: 3 | P62: 2 | Q62: 1 | R62: 15 | S62: 8 | T62: 7 | U62: 29 | V62: 18 | W62: 11 | X62: 0 | Y62: 0 | Z62: 0 | AA62: 46 | AB62: 34 | AC62: 12 | AD62: 25 | AE62: 17 | AF62: 8 | AG62: 2 | AH62: 1 | AI62: 1 | AJ62: 0 | AK62: 0 | AL62: 0 | AM62: 4 | AN62: 3 | AO62: 1 | AP62: 0 | AQ62: 0 | AR62: 0 | AS62: 2 | AT62: 2 | AU62: 0 | AV62: 0 | AW62: 0 | AX62: 0
B63: 58 | C63: 362 | D63: 246 | E63: 116 | F63: 161 | G63: 112 | H63: 49 | I63: 38 | J63: 24 | K63: 14 | L63: 23 | M63: 14 | N63: 9 | O63: 5 | P63: 2 | Q63: 3 | R63: 15 | S63: 12 | T63: 3 | U63: 29 | V63: 23 | W63: 6 | X63: 0 | Y63: 0 | Z63: 0 | AA63: 53 | AB63: 31 | AC63: 22 | AD63: 26 | AE63: 20 | AF63: 6 | AG63: 0 | AH63: 0 | AI63: 0 | AJ63: 1 | AK63: 0 | AL63: 1 | AM63: 5 | AN63: 5 | AO63: 0 | AP63: 1 | AQ63: 1 | AR63: 0 | AS63: 2 | AT63: 0 | AU63: 2 | AV63: 3 | AW63: 2 | AX63: 1
B64: 59 | C64: 331 | D64: 213 | E64: 118 | F64: 134 | G64: 95 | H64: 39 | I64: 42 | J64: 24 | K64: 18 | L64: 25 | M64: 13 | N64: 12 | O64: 4 | P64: 4 | Q64: 0 | R64: 22 | S64: 16 | T64: 6 | U64: 30 | V64: 19 | W64: 11 | X64: 0 | Y64: 0 | Z64: 0 | AA64: 33 | AB64: 17 | AC64: 16 | AD64: 27 | AE64: 14 | AF64: 13 | AG64: 2 | AH64: 2 | AI64: 0 | AJ64: 2 | AK64: 2 | AL64: 0 | AM64: 5 | AN64: 3 | AO64: 2 | AP64: 0 | AQ64: 0 | AR64: 0 | AS64: 4 | AT64: 3 | AU64: 1 | AV64: 1 | AW64: 1 | AX64: 0
B65: 60 | C65: 338 | D65: 216 | E65: 122 | F65: 152 | G65: 105 | H65: 47 | I65: 40 | J65: 20 | K65: 20 | L65: 35 | M65: 20 | N65: 15 | O65: 3 | P65: 2 | Q65: 1 | R65: 13 | S65: 8 | T65: 5 | U65: 35 | V65: 23 | W65: 12 | X65: 0 | Y65: 0 | Z65: 0 | AA65: 29 | AB65: 15 | AC65: 14 | AD65: 22 | AE65: 15 | AF65: 7 | AG65: 0 | AH65: 0 | AI65: 0 | AJ65: 1 | AK65: 1 | AL65: 0 | AM65: 7 | AN65: 6 | AO65: 1 | AP65: 0 | AQ65: 0 | AR65: 0 | AS65: 1 | AT65: 1 | AU65: 0 | AV65: 0 | AW65: 0 | AX65: 0
B66: 61 | C66: 362 | D66: 254 | E66: 108 | F66: 171 | G66: 121 | H66: 50 | I66: 46 | J66: 34 | K66: 12 | L66: 29 | M66: 19 | N66: 10 | O66: 2 | P66: 1 | Q66: 1 | R66: 15 | S66: 10 | T66: 5 | U66: 36 | V66: 27 | W66: 9 | X66: 0 | Y66: 0 | Z66: 0 | AA66: 25 | AB66: 16 | AC66: 9 | AD66: 25 | AE66: 16 | AF66: 9 | AG66: 2 | AH66: 1 | AI66: 1 | AJ66: 1 | AK66: 0 | AL66: 1 | AM66: 6 | AN66: 5 | AO66: 1 | AP66: 0 | AQ66: 0 | AR66: 0 | AS66: 4 | AT66: 4 | AU66: 0 | AV66: 0 | AW66: 0 | AX66: 0
B67: 62 | C67: 399 | D67: 271 | E67: 128 | F67: 196 | G67: 141 | H67: 55 | I67: 50 | J67: 33 | K67: 17 | L67: 26 | M67: 17 | N67: 9 | O67: 3 | P67: 3 | Q67: 0 | R67: 17 | S67: 14 | T67: 3 | U67: 38 | V67: 24 | W67: 14 | X67: 0 | Y67: 0 | Z67: 0 | AA67: 28 | AB67: 17 | AC67: 11 | AD67: 29 | AE67: 15 | AF67: 14 | AG67: 0 | AH67: 0 | AI67: 0 | AJ67: 1 | AK67: 1 | AL67: 0 | AM67: 7 | AN67: 4 | AO67: 3 | AP67: 1 | AQ67: 0 | AR67: 1 | AS67: 3 | AT67: 2 | AU67: 1 | AV67: 0 | AW67: 0 | AX67: 0
B68: 63 | C68: 384 | D68: 275 | E68: 109 | F68: 175 | G68: 122 | H68: 53 | I68: 47 | J68: 34 | K68: 13 | L68: 37 | M68: 27 | N68: 10 | O68: 4 | P68: 4 | Q68: 0 | R68: 12 | S68: 11 | T68: 1 | U68: 37 | V68: 29 | W68: 8 | X68: 0 | Y68: 0 | Z68: 0 | AA68: 36 | AB68: 24 | AC68: 12 | AD68: 21 | AE68: 14 | AF68: 7 | AG68: 2 | AH68: 1 | AI68: 1 | AJ68: 3 | AK68: 1 | AL68: 2 | AM68: 3 | AN68: 2 | AO68: 1 | AP68: 0 | AQ68: 0 | AR68: 0 | AS68: 3 | AT68: 3 | AU68: 0 | AV68: 4 | AW68: 3 | AX68: 1
B69: 64 | C69: 490 | D69: 319 | E69: 171 | F69: 231 | G69: 159 | H69: 72 | I69: 64 | J69: 37 | K69: 27 | L69: 46 | M69: 27 | N69: 19 | O69: 3 | P69: 3 | Q69: 0 | R69: 20 | S69: 13 | T69: 7 | U69: 51 | V69: 34 | W69: 17 | X69: 0 | Y69: 0 | Z69: 0 | AA69: 30 | AB69: 21 | AC69: 9 | AD69: 23 | AE69: 14 | AF69: 9 | AG69: 2 | AH69: 2 | AI69: 0 | AJ69: 1 | AK69: 0 | AL69: 1 | AM69: 10 | AN69: 5 | AO69: 5 | AP69: 1 | AQ69: 0 | AR69: 1 | AS69: 6 | AT69: 2 | AU69: 4 | AV69: 2 | AW69: 2 | AX69: 0
B70: 65 | C70: 539 | D70: 347 | E70: 192 | F70: 247 | G70: 155 | H70: 92 | I70: 54 | J70: 39 | K70: 15 | L70: 61 | M70: 32 | N70: 29 | O70: 6 | P70: 6 | Q70: 0 | R70: 16 | S70: 13 | T70: 3 | U70: 46 | V70: 31 | W70: 15 | X70: 0 | Y70: 0 | Z70: 0 | AA70: 41 | AB70: 28 | AC70: 13 | AD70: 40 | AE70: 26 | AF70: 14 | AG70: 2 | AH70: 2 | AI70: 0 | AJ70: 6 | AK70: 3 | AL70: 3 | AM70: 9 | AN70: 5 | AO70: 4 | AP70: 0 | AQ70: 0 | AR70: 0 | AS70: 8 | AT70: 4 | AU70: 4 | AV70: 3 | AW70: 3 | AX70: 0
B71: 66 | C71: 522 | D71: 343 | E71: 179 | F71: 244 | G71: 172 | H71: 72 | I71: 52 | J71: 36 | K71: 16 | L71: 54 | M71: 28 | N71: 26 | O71: 7 | P71: 4 | Q71: 3 | R71: 16 | S71: 9 | T71: 7 | U71: 59 | V71: 41 | W71: 18 | X71: 0 | Y71: 0 | Z71: 0 | AA71: 42 | AB71: 23 | AC71: 19 | AD71: 32 | AE71: 20 | AF71: 12 | AG71: 0 | AH71: 0 | AI71: 0 | AJ71: 4 | AK71: 2 | AL71: 2 | AM71: 6 | AN71: 4 | AO71: 2 | AP71: 1 | AQ71: 1 | AR71: 0 | AS71: 5 | AT71: 3 | AU71: 2 | AV71: 0 | AW71: 0 | AX71: 0
B72: 67 | C72: 467 | D72: 289 | E72: 178 | F72: 229 | G72: 140 | H72: 89 | I72: 49 | J72: 32 | K72: 17 | L72: 52 | M72: 32 | N72: 20 | O72: 6 | P72: 3 | Q72: 3 | R72: 5 | S72: 4 | T72: 1 | U72: 66 | V72: 42 | W72: 24 | X72: 0 | Y72: 0 | Z72: 0 | AA72: 22 | AB72: 16 | AC72: 6 | AD72: 26 | AE72: 11 | AF72: 15 | AG72: 0 | AH72: 0 | AI72: 0 | AJ72: 4 | AK72: 3 | AL72: 1 | AM72: 2 | AN72: 1 | AO72: 1 | AP72: 3 | AQ72: 3 | AR72: 0 | AS72: 3 | AT72: 2 | AU72: 1 | AV72: 0 | AW72: 0 | AX72: 0
B73: 68 | C73: 477 | D73: 286 | E73: 191 | F73: 242 | G73: 138 | H73: 104 | I73: 46 | J73: 25 | K73: 21 | L73: 56 | M73: 35 | N73: 21 | O73: 2 | P73: 0 | Q73: 2 | R73: 11 | S73: 8 | T73: 3 | U73: 45 | V73: 31 | W73: 14 | X73: 0 | Y73: 0 | Z73: 0 | AA73: 24 | AB73: 15 | AC73: 9 | AD73: 27 | AE73: 17 | AF73: 10 | AG73: 2 | AH73: 2 | AI73: 0 | AJ73: 9 | AK73: 5 | AL73: 4 | AM73: 5 | AN73: 4 | AO73: 1 | AP73: 1 | AQ73: 1 | AR73: 0 | AS73: 6 | AT73: 4 | AU73: 2 | AV73: 1 | AW73: 1 | AX73: 0
B74: 69 | C74: 486 | D74: 285 | E74: 201 | F74: 241 | G74: 138 | H74: 103 | I74: 44 | J74: 29 | K74: 15 | L74: 63 | M74: 31 | N74: 32 | O74: 4 | P74: 3 | Q74: 1 | R74: 11 | S74: 6 | T74: 5 | U74: 49 | V74: 32 | W74: 17 | X74: 0 | Y74: 0 | Z74: 0 | AA74: 22 | AB74: 17 | AC74: 5 | AD74: 39 | AE74: 21 | AF74: 18 | AG74: 1 | AH74: 0 | AI74: 1 | AJ74: 5 | AK74: 4 | AL74: 1 | AM74: 3 | AN74: 2 | AO74: 1 | AP74: 0 | AQ74: 0 | AR74: 0 | AS74: 2 | AT74: 1 | AU74: 1 | AV74: 2 | AW74: 1 | AX74: 1
B75: 70 | C75: 525 | D75: 313 | E75: 212 | F75: 254 | G75: 146 | H75: 108 | I75: 55 | J75: 34 | K75: 21 | L75: 61 | M75: 32 | N75: 29 | O75: 4 | P75: 3 | Q75: 1 | R75: 7 | S75: 3 | T75: 4 | U75: 58 | V75: 36 | W75: 22 | X75: 0 | Y75: 0 | Z75: 0 | AA75: 28 | AB75: 19 | AC75: 9 | AD75: 33 | AE75: 21 | AF75: 12 | AG75: 2 | AH75: 1 | AI75: 1 | AJ75: 8 | AK75: 6 | AL75: 2 | AM75: 6 | AN75: 6 | AO75: 0 | AP75: 0 | AQ75: 0 | AR75: 0 | AS75: 7 | AT75: 4 | AU75: 3 | AV75: 2 | AW75: 2 | AX75: 0
B76: 71 | C76: 491 | D76: 276 | E76: 215 | F76: 253 | G76: 132 | H76: 121 | I76: 44 | J76: 25 | K76: 19 | L76: 69 | M76: 45 | N76: 24 | O76: 4 | P76: 4 | Q76: 0 | R76: 4 | S76: 3 | T76: 1 | U76: 59 | V76: 33 | W76: 26 | X76: 0 | Y76: 0 | Z76: 0 | AA76: 13 | AB76: 4 | AC76: 9 | AD76: 27 | AE76: 21 | AF76: 6 | AG76: 0 | AH76: 0 | AI76: 0 | AJ76: 5 | AK76: 3 | AL76: 2 | AM76: 6 | AN76: 3 | AO76: 3 | AP76: 0 | AQ76: 0 | AR76: 0 | AS76: 6 | AT76: 3 | AU76: 3 | AV76: 1 | AW76: 0 | AX76: 1
B77: 72 | C77: 465 | D77: 262 | E77: 203 | F77: 228 | G77: 113 | H77: 115 | I77: 56 | J77: 28 | K77: 28 | L77: 69 | M77: 48 | N77: 21 | O77: 2 | P77: 2 | Q77: 0 | R77: 1 | S77: 0 | T77: 1 | U77: 49 | V77: 37 | W77: 12 | X77: 0 | Y77: 0 | Z77: 0 | AA77: 20 | AB77: 12 | AC77: 8 | AD77: 30 | AE77: 17 | AF77: 13 | AG77: 0 | AH77: 0 | AI77: 0 | AJ77: 1 | AK77: 1 | AL77: 0 | AM77: 3 | AN77: 1 | AO77: 2 | AP77: 0 | AQ77: 0 | AR77: 0 | AS77: 6 | AT77: 3 | AU77: 3 | AV77: 0 | AW77: 0 | AX77: 0
B78: 73 | C78: 516 | D78: 299 | E78: 217 | F78: 238 | G78: 122 | H78: 116 | I78: 62 | J78: 37 | K78: 25 | L78: 85 | M78: 51 | N78: 34 | O78: 5 | P78: 5 | Q78: 0 | R78: 6 | S78: 5 | T78: 1 | U78: 64 | V78: 43 | W78: 21 | X78: 0 | Y78: 0 | Z78: 0 | AA78: 12 | AB78: 8 | AC78: 4 | AD78: 27 | AE78: 17 | AF78: 10 | AG78: 0 | AH78: 0 | AI78: 0 | AJ78: 3 | AK78: 2 | AL78: 1 | AM78: 7 | AN78: 5 | AO78: 2 | AP78: 1 | AQ78: 0 | AR78: 1 | AS78: 6 | AT78: 4 | AU78: 2 | AV78: 0 | AW78: 0 | AX78: 0
B79: 74 | C79: 412 | D79: 208 | E79: 204 | F79: 204 | G79: 83 | H79: 121 | I79: 33 | J79: 16 | K79: 17 | L79: 74 | M79: 47 | N79: 27 | O79: 6 | P79: 6 | Q79: 0 | R79: 6 | S79: 4 | T79: 2 | U79: 43 | V79: 23 | W79: 20 | X79: 0 | Y79: 0 | Z79: 0 | AA79: 11 | AB79: 4 | AC79: 7 | AD79: 25 | AE79: 17 | AF79: 8 | AG79: 0 | AH79: 0 | AI79: 0 | AJ79: 2 | AK79: 2 | AL79: 0 | AM79: 3 | AN79: 3 | AO79: 0 | AP79: 1 | AQ79: 1 | AR79: 0 | AS79: 4 | AT79: 2 | AU79: 2 | AV79: 0 | AW79: 0 | AX79: 0
B80: 75 | C80: 535 | D80: 295 | E80: 240 | F80: 247 | G80: 122 | H80: 125 | I80: 61 | J80: 31 | K80: 30 | L80: 100 | M80: 62 | N80: 38 | O80: 3 | P80: 2 | Q80: 1 | R80: 6 | S80: 6 | T80: 0 | U80: 59 | V80: 36 | W80: 23 | X80: 0 | Y80: 0 | Z80: 0 | AA80: 17 | AB80: 13 | AC80: 4 | AD80: 28 | AE80: 13 | AF80: 15 | AG80: 0 | AH80: 0 | AI80: 0 | AJ80: 7 | AK80: 5 | AL80: 2 | AM80: 3 | AN80: 3 | AO80: 0 | AP80: 0 | AQ80: 0 | AR80: 0 | AS80: 4 | AT80: 2 | AU80: 2 | AV80: 0 | AW80: 0 | AX80: 0
B81: 76 | C81: 492 | D81: 247 | E81: 245 | F81: 224 | G81: 91 | H81: 133 | I81: 67 | J81: 37 | K81: 30 | L81: 98 | M81: 59 | N81: 39 | O81: 2 | P81: 1 | Q81: 1 | R81: 3 | S81: 2 | T81: 1 | U81: 53 | V81: 28 | W81: 25 | X81: 0 | Y81: 0 | Z81: 0 | AA81: 6 | AB81: 5 | AC81: 1 | AD81: 28 | AE81: 16 | AF81: 12 | AG81: 0 | AH81: 0 | AI81: 0 | AJ81: 5 | AK81: 5 | AL81: 0 | AM81: 2 | AN81: 2 | AO81: 0 | AP81: 0 | AQ81: 0 | AR81: 0 | AS81: 2 | AT81: 1 | AU81: 1 | AV81: 2 | AW81: 0 | AX81: 2
B82: 77 | C82: 528 | D82: 268 | E82: 260 | F82: 246 | G82: 109 | H82: 137 | I82: 63 | J82: 30 | K82: 33 | L82: 120 | M82: 76 | N82: 44 | O82: 7 | P82: 6 | Q82: 1 | R82: 0 | S82: 0 | T82: 0 | U82: 48 | V82: 26 | W82: 22 | X82: 0 | Y82: 0 | Z82: 0 | AA82: 8 | AB82: 3 | AC82: 5 | AD82: 18 | AE82: 9 | AF82: 9 | AG82: 0 | AH82: 0 | AI82: 0 | AJ82: 5 | AK82: 3 | AL82: 2 | AM82: 6 | AN82: 2 | AO82: 4 | AP82: 0 | AQ82: 0 | AR82: 0 | AS82: 7 | AT82: 4 | AU82: 3 | AV82: 0 | AW82: 0 | AX82: 0
B83: 78 | C83: 574 | D83: 305 | E83: 269 | F83: 260 | G83: 122 | H83: 138 | I83: 82 | J83: 46 | K83: 36 | L83: 129 | M83: 82 | N83: 47 | O83: 2 | P83: 1 | Q83: 1 | R83: 3 | S83: 1 | T83: 2 | U83: 58 | V83: 29 | W83: 29 | X83: 0 | Y83: 0 | Z83: 0 | AA83: 5 | AB83: 1 | AC83: 4 | AD83: 20 | AE83: 15 | AF83: 5 | AG83: 1 | AH83: 0 | AI83: 1 | AJ83: 3 | AK83: 2 | AL83: 1 | AM83: 1 | AN83: 0 | AO83: 1 | AP83: 0 | AQ83: 0 | AR83: 0 | AS83: 10 | AT83: 6 | AU83: 4 | AV83: 0 | AW83: 0 | AX83: 0
B84: 79 | C84: 458 | D84: 228 | E84: 230 | F84: 226 | G84: 90 | H84: 136 | I84: 56 | J84: 24 | K84: 32 | L84: 101 | M84: 69 | N84: 32 | O84: 3 | P84: 2 | Q84: 1 | R84: 0 | S84: 0 | T84: 0 | U84: 44 | V84: 26 | W84: 18 | X84: 0 | Y84: 0 | Z84: 0 | AA84: 4 | AB84: 3 | AC84: 1 | AD84: 15 | AE84: 8 | AF84: 7 | AG84: 0 | AH84: 0 | AI84: 0 | AJ84: 4 | AK84: 4 | AL84: 0 | AM84: 1 | AN84: 0 | AO84: 1 | AP84: 0 | AQ84: 0 | AR84: 0 | AS84: 4 | AT84: 2 | AU84: 2 | AV84: 0 | AW84: 0 | AX84: 0
B85: 80 | C85: 454 | D85: 228 | E85: 226 | F85: 200 | G85: 86 | H85: 114 | I85: 59 | J85: 36 | K85: 23 | L85: 116 | M85: 68 | N85: 48 | O85: 4 | P85: 3 | Q85: 1 | R85: 1 | S85: 0 | T85: 1 | U85: 45 | V85: 15 | W85: 30 | X85: 0 | Y85: 0 | Z85: 0 | AA85: 3 | AB85: 3 | AC85: 0 | AD85: 11 | AE85: 5 | AF85: 6 | AG85: 0 | AH85: 0 | AI85: 0 | AJ85: 6 | AK85: 4 | AL85: 2 | AM85: 1 | AN85: 1 | AO85: 0 | AP85: 1 | AQ85: 1 | AR85: 0 | AS85: 7 | AT85: 6 | AU85: 1 | AV85: 0 | AW85: 0 | AX85: 0
B86: 81 | C86: 471 | D86: 227 | E86: 244 | F86: 203 | G86: 72 | H86: 131 | I86: 48 | J86: 24 | K86: 24 | L86: 139 | M86: 79 | N86: 60 | O86: 3 | P86: 3 | Q86: 0 | R86: 1 | S86: 1 | T86: 0 | U86: 47 | V86: 28 | W86: 19 | X86: 0 | Y86: 0 | Z86: 0 | AA86: 3 | AB86: 3 | AC86: 0 | AD86: 15 | AE86: 9 | AF86: 6 | AG86: 1 | AH86: 0 | AI86: 1 | AJ86: 2 | AK86: 2 | AL86: 0 | AM86: 1 | AN86: 0 | AO86: 1 | AP86: 1 | AQ86: 1 | AR86: 0 | AS86: 6 | AT86: 5 | AU86: 1 | AV86: 1 | AW86: 0 | AX86: 1
B87: 82 | C87: 497 | D87: 230 | E87: 267 | F87: 212 | G87: 63 | H87: 149 | I87: 62 | J87: 38 | K87: 24 | L87: 163 | M87: 99 | N87: 64 | O87: 3 | P87: 2 | Q87: 1 | R87: 0 | S87: 0 | T87: 0 | U87: 32 | V87: 13 | W87: 19 | X87: 0 | Y87: 0 | Z87: 0 | AA87: 2 | AB87: 2 | AC87: 0 | AD87: 12 | AE87: 7 | AF87: 5 | AG87: 0 | AH87: 0 | AI87: 0 | AJ87: 4 | AK87: 3 | AL87: 1 | AM87: 1 | AN87: 0 | AO87: 1 | AP87: 1 | AQ87: 0 | AR87: 1 | AS87: 5 | AT87: 3 | AU87: 2 | AV87: 0 | AW87: 0 | AX87: 0
B88: 83 | C88: 549 | D88: 255 | E88: 294 | F88: 235 | G88: 83 | H88: 152 | I88: 59 | J88: 26 | K88: 33 | L88: 158 | M88: 91 | N88: 67 | O88: 1 | P88: 0 | Q88: 1 | R88: 2 | S88: 2 | T88: 0 | U88: 54 | V88: 32 | W88: 22 | X88: 0 | Y88: 0 | Z88: 0 | AA88: 1 | AB88: 0 | AC88: 1 | AD88: 20 | AE88: 9 | AF88: 11 | AG88: 0 | AH88: 0 | AI88: 0 | AJ88: 1 | AK88: 1 | AL88: 0 | AM88: 3 | AN88: 0 | AO88: 3 | AP88: 0 | AQ88: 0 | AR88: 0 | AS88: 14 | AT88: 10 | AU88: 4 | AV88: 1 | AW88: 1 | AX88: 0
B89: 84 | C89: 404 | D89: 174 | E89: 230 | F89: 168 | G89: 56 | H89: 112 | I89: 50 | J89: 22 | K89: 28 | L89: 124 | M89: 67 | N89: 57 | O89: 1 | P89: 1 | Q89: 0 | R89: 1 | S89: 1 | T89: 0 | U89: 30 | V89: 9 | W89: 21 | X89: 0 | Y89: 0 | Z89: 0 | AA89: 2 | AB89: 1 | AC89: 1 | AD89: 21 | AE89: 12 | AF89: 9 | AG89: 0 | AH89: 0 | AI89: 0 | AJ89: 0 | AK89: 0 | AL89: 0 | AM89: 0 | AN89: 0 | AO89: 0 | AP89: 0 | AQ89: 0 | AR89: 0 | AS89: 7 | AT89: 5 | AU89: 2 | AV89: 0 | AW89: 0 | AX89: 0
A90: 합계 | B90: 85 | C90: 372 | D90: 178 | E90: 194 | F90: 145 | G90: 55 | H90: 90 | I90: 39 | J90: 20 | K90: 19 | L90: 135 | M90: 77 | N90: 58 | O90: 3 | P90: 2 | Q90: 1 | R90: 0 | S90: 0 | T90: 0 | U90: 33 | V90: 15 | W90: 18 | X90: 0 | Y90: 0 | Z90: 0 | AA90: 1 | AB90: 0 | AC90: 1 | AD90: 11 | AE90: 6 | AF90: 5 | AG90: 0 | AH90: 0 | AI90: 0 | AJ90: 0 | AK90: 0 | AL90: 0 | AM90: 1 | AN90: 1 | AO90: 0 | AP90: 1 | AQ90: 0 | AR90: 1 | AS90: 3 | AT90: 2 | AU90: 1 | AV90: 0 | AW90: 0 | AX90: 0
B91: 86 | C91: 366 | D91: 159 | E91: 207 | F91: 129 | G91: 41 | H91: 88 | I91: 49 | J91: 25 | K91: 24 | L91: 137 | M91: 74 | N91: 63 | O91: 1 | P91: 1 | Q91: 0 | R91: 0 | S91: 0 | T91: 0 | U91: 32 | V91: 10 | W91: 22 | X91: 0 | Y91: 0 | Z91: 0 | AA91: 1 | AB91: 0 | AC91: 1 | AD91: 12 | AE91: 4 | AF91: 8 | AG91: 0 | AH91: 0 | AI91: 0 | AJ91: 1 | AK91: 1 | AL91: 0 | AM91: 0 | AN91: 0 | AO91: 0 | AP91: 0 | AQ91: 0 | AR91: 0 | AS91: 4 | AT91: 3 | AU91: 1 | AV91: 0 | AW91: 0 | AX91: 0
B92: 87 | C92: 320 | D92: 123 | E92: 197 | F92: 109 | G92: 30 | H92: 79 | I92: 28 | J92: 11 | K92: 17 | L92: 125 | M92: 54 | N92: 71 | O92: 1 | P92: 1 | Q92: 0 | R92: 2 | S92: 1 | T92: 1 | U92: 34 | V92: 13 | W92: 21 | X92: 0 | Y92: 0 | Z92: 0 | AA92: 0 | AB92: 0 | AC92: 0 | AD92: 10 | AE92: 5 | AF92: 5 | AG92: 1 | AH92: 1 | AI92: 0 | AJ92: 2 | AK92: 2 | AL92: 0 | AM92: 0 | AN92: 0 | AO92: 0 | AP92: 0 | AQ92: 0 | AR92: 0 | AS92: 8 | AT92: 5 | AU92: 3 | AV92: 0 | AW92: 0 | AX92: 0
B93: 88 | C93: 279 | D93: 106 | E93: 173 | F93: 116 | G93: 31 | H93: 85 | I93: 18 | J93: 10 | K93: 8 | L93: 107 | M93: 48 | N93: 59 | O93: 0 | P93: 0 | Q93: 0 | R93: 1 | S93: 1 | T93: 0 | U93: 24 | V93: 8 | W93: 16 | X93: 0 | Y93: 0 | Z93: 0 | AA93: 1 | AB93: 1 | AC93: 0 | AD93: 10 | AE93: 5 | AF93: 5 | AG93: 0 | AH93: 0 | AI93: 0 | AJ93: 1 | AK93: 1 | AL93: 0 | AM93: 0 | AN93: 0 | AO93: 0 | AP93: 0 | AQ93: 0 | AR93: 0 | AS93: 1 | AT93: 1 | AU93: 0 | AV93: 0 | AW93: 0 | AX93: 0
B94: 89 | C94: 220 | D94: 87 | E94: 133 | F94: 67 | G94: 16 | H94: 51 | I94: 27 | J94: 12 | K94: 15 | L94: 98 | M94: 45 | N94: 53 | O94: 1 | P94: 0 | Q94: 1 | R94: 0 | S94: 0 | T94: 0 | U94: 20 | V94: 11 | W94: 9 | X94: 0 | Y94: 0 | Z94: 0 | AA94: 0 | AB94: 0 | AC94: 0 | AD94: 5 | AE94: 2 | AF94: 3 | AG94: 0 | AH94: 0 | AI94: 0 | AJ94: 0 | AK94: 0 | AL94: 0 | AM94: 0 | AN94: 0 | AO94: 0 | AP94: 0 | AQ94: 0 | AR94: 0 | AS94: 2 | AT94: 1 | AU94: 1 | AV94: 0 | AW94: 0 | AX94: 0
B95: 90 | C95: 179 | D95: 59 | E95: 120 | F95: 70 | G95: 14 | H95: 56 | I95: 14 | J95: 3 | K95: 11 | L95: 71 | M95: 34 | N95: 37 | O95: 0 | P95: 0 | Q95: 0 | R95: 1 | S95: 0 | T95: 1 | U95: 13 | V95: 2 | W95: 11 | X95: 0 | Y95: 0 | Z95: 0 | AA95: 1 | AB95: 0 | AC95: 1 | AD95: 5 | AE95: 3 | AF95: 2 | AG95: 0 | AH95: 0 | AI95: 0 | AJ95: 0 | AK95: 0 | AL95: 0 | AM95: 0 | AN95: 0 | AO95: 0 | AP95: 0 | AQ95: 0 | AR95: 0 | AS95: 4 | AT95: 3 | AU95: 1 | AV95: 0 | AW95: 0 | AX95: 0
B96: 91 | C96: 151 | D96: 56 | E96: 95 | F96: 52 | G96: 10 | H96: 42 | I96: 10 | J96: 3 | K96: 7 | L96: 78 | M96: 37 | N96: 41 | O96: 0 | P96: 0 | Q96: 0 | R96: 0 | S96: 0 | T96: 0 | U96: 9 | V96: 5 | W96: 4 | X96: 0 | Y96: 0 | Z96: 0 | AA96: 0 | AB96: 0 | AC96: 0 | AD96: 1 | AE96: 1 | AF96: 0 | AG96: 0 | AH96: 0 | AI96: 0 | AJ96: 0 | AK96: 0 | AL96: 0 | AM96: 0 | AN96: 0 | AO96: 0 | AP96: 0 | AQ96: 0 | AR96: 0 | AS96: 1 | AT96: 0 | AU96: 1 | AV96: 0 | AW96: 0 | AX96: 0
B97: 92 | C97: 99 | D97: 37 | E97: 62 | F97: 22 | G97: 5 | H97: 17 | I97: 11 | J97: 5 | K97: 6 | L97: 55 | M97: 24 | N97: 31 | O97: 2 | P97: 1 | Q97: 1 | R97: 0 | S97: 0 | T97: 0 | U97: 8 | V97: 1 | W97: 7 | X97: 0 | Y97: 0 | Z97: 0 | AA97: 0 | AB97: 0 | AC97: 0 | AD97: 1 | AE97: 1 | AF97: 0 | AG97: 0 | AH97: 0 | AI97: 0 | AJ97: 0 | AK97: 0 | AL97: 0 | AM97: 0 | AN97: 0 | AO97: 0 | AP97: 0 | AQ97: 0 | AR97: 0 | AS97: 0 | AT97: 0 | AU97: 0 | AV97: 0 | AW97: 0 | AX97: 0
B98: 93 | C98: 59 | D98: 17 | E98: 42 | F98: 17 | G98: 1 | H98: 16 | I98: 1 | J98: 0 | K98: 1 | L98: 34 | M98: 15 | N98: 19 | O98: 1 | P98: 0 | Q98: 1 | R98: 0 | S98: 0 | T98: 0 | U98: 4 | V98: 1 | W98: 3 | X98: 0 | Y98: 0 | Z98: 0 | AA98: 0 | AB98: 0 | AC98: 0 | AD98: 2 | AE98: 0 | AF98: 2 | AG98: 0 | AH98: 0 | AI98: 0 | AJ98: 0 | AK98: 0 | AL98: 0 | AM98: 0 | AN98: 0 | AO98: 0 | AP98: 0 | AQ98: 0 | AR98: 0 | AS98: 0 | AT98: 0 | AU98: 0 | AV98: 0 | AW98: 0 | AX98: 0
B99: 94 | C99: 56 | D99: 19 | E99: 37 | F99: 12 | G99: 3 | H99: 9 | I99: 12 | J99: 4 | K99: 8 | L99: 27 | M99: 9 | N99: 18 | O99: 0 | P99: 0 | Q99: 0 | R99: 0 | S99: 0 | T99: 0 | U99: 2 | V99: 1 | W99: 1 | X99: 0 | Y99: 0 | Z99: 0 | AA99: 0 | AB99: 0 | AC99: 0 | AD99: 1 | AE99: 0 | AF99: 1 | AG99: 0 | AH99: 0 | AI99: 0 | AJ99: 0 | AK99: 0 | AL99: 0 | AM99: 0 | AN99: 0 | AO99: 0 | AP99: 0 | AQ99: 0 | AR99: 0 | AS99: 2 | AT99: 2 | AU99: 0 | AV99: 0 | AW99: 0 | AX99: 0
B100: 95 | C100: 34 | D100: 6 | E100: 28 | F100: 11 | G100: 0 | H100: 11 | I100: 2 | J100: 1 | K100: 1 | L100: 20 | M100: 5 | N100: 15 | O100: 0 | P100: 0 | Q100: 0 | R100: 0 | S100: 0 | T100: 0 | U100: 1 | V100: 0 | W100: 1 | X100: 0 | Y100: 0 | Z100: 0 | AA100: 0 | AB100: 0 | AC100: 0 | AD100: 0 | AE100: 0 | AF100: 0 | AG100: 0 | AH100: 0 | AI100: 0 | AJ100: 0 | AK100: 0 | AL100: 0 | AM100: 0 | AN100: 0 | AO100: 0 | AP100: 0 | AQ100: 0 | AR100: 0 | AS100: 0 | AT100: 0 | AU100: 0 | AV100: 0 | AW100: 0 | AX100: 0
B101: 96 | C101: 33 | D101: 15 | E101: 18 | F101: 12 | G101: 4 | H101: 8 | I101: 3 | J101: 1 | K101: 2 | L101: 14 | M101: 6 | N101: 8 | O101: 0 | P101: 0 | Q101: 0 | R101: 0 | S101: 0 | T101: 0 | U101: 1 | V101: 1 | W101: 0 | X101: 0 | Y101: 0 | Z101: 0 | AA101: 0 | AB101: 0 | AC101: 0 | AD101: 1 | AE101: 1 | AF101: 0 | AG101: 0 | AH101: 0 | AI101: 0 | AJ101: 1 | AK101: 1 | AL101: 0 | AM101: 0 | AN101: 0 | AO101: 0 | AP101: 0 | AQ101: 0 | AR101: 0 | AS101: 1 | AT101: 1 | AU101: 0 | AV101: 0 | AW101: 0 | AX101: 0
B102: 97 | C102: 17 | D102: 7 | E102: 10 | F102: 3 | G102: 0 | H102: 3 | I102: 2 | J102: 0 | K102: 2 | L102: 10 | M102: 6 | N102: 4 | O102: 0 | P102: 0 | Q102: 0 | R102: 0 | S102: 0 | T102: 0 | U102: 0 | V102: 0 | W102: 0 | X102: 0 | Y102: 0 | Z102: 0 | AA102: 0 | AB102: 0 | AC102: 0 | AD102: 0 | AE102: 0 | AF102: 0 | AG102: 0 | AH102: 0 | AI102: 0 | AJ102: 0 | AK102: 0 | AL102: 0 | AM102: 0 | AN102: 0 | AO102: 0 | AP102: 0 | AQ102: 0 | AR102: 0 | AS102: 2 | AT102: 1 | AU102: 1 | AV102: 0 | AW102: 0 | AX102: 0
B103: 98 | C103: 10 | D103: 4 | E103: 6 | F103: 3 | G103: 1 | H103: 2 | I103: 1 | J103: 1 | K103: 0 | L103: 6 | M103: 2 | N103: 4 | O103: 0 | P103: 0 | Q103: 0 | R103: 0 | S103: 0 | T103: 0 | U103: 0 | V103: 0 | W103: 0 | X103: 0 | Y103: 0 | Z103: 0 | AA103: 0 | AB103: 0 | AC103: 0 | AD103: 0 | AE103: 0 | AF103: 0 | AG103: 0 | AH103: 0 | AI103: 0 | AJ103: 0 | AK103: 0 | AL103: 0 | AM103: 0 | AN103: 0 | AO103: 0 | AP103: 0 | AQ103: 0 | AR103: 0 | AS103: 0 | AT103: 0 | AU103: 0 | AV103: 0 | AW103: 0 | AX103: 0
B104: 99 | C104: 6 | D104: 1 | E104: 5 | F104: 0 | G104: 0 | H104: 0 | I104: 0 | J104: 0 | K104: 0 | L104: 6 | M104: 1 | N104: 5 | O104: 0 | P104: 0 | Q104: 0 | R104: 0 | S104: 0 | T104: 0 | U104: 0 | V104: 0 | W104: 0 | X104: 0 | Y104: 0 | Z104: 0 | AA104: 0 | AB104: 0 | AC104: 0 | AD104: 0 | AE104: 0 | AF104: 0 | AG104: 0 | AH104: 0 | AI104: 0 | AJ104: 0 | AK104: 0 | AL104: 0 | AM104: 0 | AN104: 0 | AO104: 0 | AP104: 0 | AQ104: 0 | AR104: 0 | AS104: 0 | AT104: 0 | AU104: 0 | AV104: 0 | AW104: 0 | AX104: 0
B105: 100 | C105: 4 | D105: 2 | E105: 2 | F105: 2 | G105: 1 | H105: 1 | I105: 0 | J105: 0 | K105: 0 | L105: 1 | M105: 1 | N105: 0 | O105: 0 | P105: 0 | Q105: 0 | R105: 0 | S105: 0 | T105: 0 | U105: 0 | V105: 0 | W105: 0 | X105: 0 | Y105: 0 | Z105: 0 | AA105: 0 | AB105: 0 | AC105: 0 | AD105: 0 | AE105: 0 | AF105: 0 | AG105: 0 | AH105: 0 | AI105: 0 | AJ105: 0 | AK105: 0 | AL105: 0 | AM105: 0 | AN105: 0 | AO105: 0 | AP105: 0 | AQ105: 0 | AR105: 0 | AS105: 1 | AT105: 0 | AU105: 1 | AV105: 0 | AW105: 0 | AX105: 0
B106: 101 | C106: 5 | D106: 0 | E106: 5 | F106: 2 | G106: 0 | H106: 2 | I106: 0 | J106: 0 | K106: 0 | L106: 3 | M106: 0 | N106: 3 | O106: 0 | P106: 0 | Q106: 0 | R106: 0 | S106: 0 | T106: 0 | U106: 0 | V106: 0 | W106: 0 | X106: 0 | Y106: 0 | Z106: 0 | AA106: 0 | AB106: 0 | AC106: 0 | AD106: 0 | AE106: 0 | AF106: 0 | AG106: 0 | AH106: 0 | AI106: 0 | AJ106: 0 | AK106: 0 | AL106: 0 | AM106: 0 | AN106: 0 | AO106: 0 | AP106: 0 | AQ106: 0 | AR106: 0 | AS106: 0 | AT106: 0 | AU106: 0 | AV106: 0 | AW106: 0 | AX106: 0
B107: 102 | C107: 3 | D107: 1 | E107: 2 | F107: 1 | G107: 0 | H107: 1 | I107: 0 | J107: 0 | K107: 0 | L107: 2 | M107: 1 | N107: 1 | O107: 0 | P107: 0 | Q107: 0 | R107: 0 | S107: 0 | T107: 0 | U107: 0 | V107: 0 | W107: 0 | X107: 0 | Y107: 0 | Z107: 0 | AA107: 0 | AB107: 0 | AC107: 0 | AD107: 0 | AE107: 0 | AF107: 0 | AG107: 0 | AH107: 0 | AI107: 0 | AJ107: 0 | AK107: 0 | AL107: 0 | AM107: 0 | AN107: 0 | AO107: 0 | AP107: 0 | AQ107: 0 | AR107: 0 | AS107: 0 | AT107: 0 | AU107: 0 | AV107: 0 | AW107: 0 | AX107: 0
B108: 103 | C108: 2 | D108: 0 | E108: 2 | F108: 0 | G108: 0 | H108: 0 | I108: 0 | J108: 0 | K108: 0 | L108: 2 | M108: 0 | N108: 2 | O108: 0 | P108: 0 | Q108: 0 | R108: 0 | S108: 0 | T108: 0 | U108: 0 | V108: 0 | W108: 0 | X108: 0 | Y108: 0 | Z108: 0 | AA108: 0 | AB108: 0 | AC108: 0 | AD108: 0 | AE108: 0 | AF108: 0 | AG108: 0 | AH108: 0 | AI108: 0 | AJ108: 0 | AK108: 0 | AL108: 0 | AM108: 0 | AN108: 0 | AO108: 0 | AP108: 0 | AQ108: 0 | AR108: 0 | AS108: 0 | AT108: 0 | AU108: 0 | AV108: 0 | AW108: 0 | AX108: 0
B109: 104 | C109: 2 | D109: 2 | E109: 0 | F109: 1 | G109: 1 | H109: 0 | I109: 0 | J109: 0 | K109: 0 | L109: 1 | M109: 1 | N109: 0 | O109: 0 | P109: 0 | Q109: 0 | R109: 0 | S109: 0 | T109: 0 | U109: 0 | V109: 0 | W109: 0 | X109: 0 | Y109: 0 | Z109: 0 | AA109: 0 | AB109: 0 | AC109: 0 | AD109: 0 | AE109: 0 | AF109: 0 | AG109: 0 | AH109: 0 | AI109: 0 | AJ109: 0 | AK109: 0 | AL109: 0 | AM109: 0 | AN109: 0 | AO109: 0 | AP109: 0 | AQ109: 0 | AR109: 0 | AS109: 0 | AT109: 0 | AU109: 0 | AV109: 0 | AW109: 0 | AX109: 0
B110: 106 | C110: 1 | D110: 0 | E110: 1 | F110: 0 | G110: 0 | H110: 0 | I110: 0 | J110: 0 | K110: 0 | L110: 1 | M110: 0 | N110: 1 | O110: 0 | P110: 0 | Q110: 0 | R110: 0 | S110: 0 | T110: 0 | U110: 0 | V110: 0 | W110: 0 | X110: 0 | Y110: 0 | Z110: 0 | AA110: 0 | AB110: 0 | AC110: 0 | AD110: 0 | AE110: 0 | AF110: 0 | AG110: 0 | AH110: 0 | AI110: 0 | AJ110: 0 | AK110: 0 | AL110: 0 | AM110: 0 | AN110: 0 | AO110: 0 | AP110: 0 | AQ110: 0 | AR110: 0 | AS110: 0 | AT110: 0 | AU110: 0 | AV110: 0 | AW110: 0 | AX110: 0

Sheet 홈페이지용
B1: 은평구 장애인 유형별, 정도별 등록 현황
B2: =정도별!B3 -> *2025. 9월말 기준
E3: (단위 : 명)
B4: 장애유형 | C4: 합계 | D4: 심한 장애 | E4: 심하지 않은 장애
B5: 합 계 | C5: =SUM(D5:E5) -> 21202 | D5: =SUM(D6:D20) -> 8054 | E5: =SUM(E6:E20) -> 13148
B6: 지체 | C6: =SUM(D6:E6) -> 8216 | D6: =은평구총괄!G8 -> 1333 | E6: =은평구총괄!J8 -> 6883 | F6: =C6/$C$5 -> 0.3875106122
B7: 시각 | C7: =SUM(D7:E7) -> 2275 | D7: =은평구총괄!G9 -> 433 | E7: =은평구총괄!J9 -> 1842 | F7: =C7/$C$5 -> 0.107301198
B8: 청각 | C8: 3346 | D8: =은평구총괄!G10 -> 614 | E8: =은평구총괄!J10 -> 2732 | F8: 0.1578153004
B9: 언어 | C9: 168 | D9: =은평구총괄!G11 -> 94 | E9: =은평구총괄!J11 -> 74 | F9: 0.007923780775
B10: 지적 | C10: 1892 | D10: =은평구총괄!G12 -> 1892 | E10: =은평구총괄!J12 -> 0 | F10: 0.08923686445
B11: 뇌병변 | C11: 2061 | D11: =은평구총괄!G13 -> 1137 | E11: =은평구총괄!J13 -> 924 | F11: 0.09720781058
B12: 자폐성 | C12: 525 | D12: =은평구총괄!G14 -> 525 | E12: =은평구총괄!J14 -> 0 | F12: 0.02476181492
B13: 정신 | C13: 1111 | D13: =은평구총괄!G15 -> 1071 | E13: =은평구총괄!J15 -> 40 | F13: 0.05240071691
B14: 신장 | C14: 997 | D14: =은평구총괄!G16 -> 776 | E14: =은평구총괄!J16 -> 221 | F14: 0.04702386567
B15: 심장 | C15: 45 | D15: =은평구총괄!G17 -> 31 | E15: =은평구총괄!J17 -> 14 | F15: 0.002122441279
B16: 호흡기 | C16: 110 | D16: =은평구총괄!G18 -> 103 | E16: =은평구총괄!J18 -> 7 | F16: 0.005188189793
B17: 간 | C17: 172 | D17: =은평구총괄!G19 -> 7 | E17: =은평구총괄!J19 -> 165 | F17: 0.008112442222
B18: 안면 | C18: 24 | D18: =은평구총괄!G20 -> 9 | E18: =은평구총괄!J20 -> 15 | F18: 0.001131968682
B19: 장루.요루 | C19: 196 | D19: =은평구총괄!G21 -> 18 | E19: =은평구총괄!J21 -> 178 | F19: 0.009244410905
B20: 뇌전증 | C20: 64 | D20: =은평구총괄!G22 -> 11 | E20: =은평구총괄!J22 -> 53 | F20: 0.003018583153

Sheet Sheet1 (hidden)
A1: 구산동 | B1: 2238
A2: 역촌동 | B2: 2143
A3: 진관동 | B3: 1968
A4: 불광1동 | B4: 1720
A5: 녹번동 | B5: 1641
A6: 불광2동 | B6: 1442
A7: 응암3동 | B7: 1327
A8: 응암1동 | B8: 1326
A9: 대조동 | B9: 1230
A10: 신사1동 | B10: 1229
A11: 갈현2동 | B11: 1204
A12: 갈현1동 | B12: 1046
A13: 응암2동 | B13: 987
A14: 신사2동 | B14: 927
A15: 증산동 | B15: 703
A16: 수색동 | B16: 623

Sheet Sheet2 (hidden)
A1: 은평구 동별 장애인현황(유형별) (2024. 3월말)
A2: 동별 | B2: 합계 | E2: 지적 | H2: 자폐 | K2: 발달장애인 | N2: 발달장애인비율
B3: 합계 | C3: 남성 | D3: 여성 | E3: 소계 | F3: 남성 | G3: 여성 | H3: 소계 | I3: 남성 | J3: 여성 | K3: 소계 | L3: 남성 | M3: 여성
A4: 합 계 | B4: =C4+D4 -> 21202 | C4: =SUM(C5:C20) -> 12316 | D4: =SUM(D5:D20) -> 8886 | E4: =F4+G4 -> 1892 | F4: =SUM(F5:F20) -> 1241 | G4: =SUM(G5:G20) -> 651 | H4: =I4+J4 -> 8216 | I4: =SUM(I5:I20) -> 4476 | J4: =SUM(J5:J20) -> 3740 | K4: =L4+M4 -> 10108 | L4: =F4+I4 -> 5717 | M4: =G4+J4 -> 4391 | N4: =K4/B4 -> 0.4767474767
A5: 녹번동 | B5: =C5+D5 -> 1621 | C5: =유형별!C5 -> 935 | D5: =유형별!D5 -> 686 | E5: =F5+G5 -> 115 | F5: =유형별!R5 -> 73 | G5: =유형별!S5 -> 42 | H5: =I5+J5 -> 674 | I5: =유형별!X5 -> 371 | J5: =유형별!Y5 -> 303 | K5: =E5+H5 -> 789 | L5: =F5+I5 -> 444 | M5: =G5+J5 -> 345 | N5: 0.4867365824
A6: 불광1동 | B6: 1564 | C6: =유형별!C6 -> 874 | D6: =유형별!D6 -> 690 | E6: 112 | F6: =유형별!R6 -> 67 | G6: =유형별!S6 -> 45 | H6: 622 | I6: =유형별!X6 -> 341 | J6: =유형별!Y6 -> 281 | K6: 734 | L6: 408 | M6: 326 | N6: 0.4693094629
A7: 불광2동 | B7: 1442 | C7: =유형별!C7 -> 842 | D7: =유형별!D7 -> 600 | E7: 118 | F7: =유형별!R7 -> 71 | G7: =유형별!S7 -> 47 | H7: 543 | I7: =유형별!X7 -> 306 | J7: =유형별!Y7 -> 237 | K7: 661 | L7: 377 | M7: 284 | N7: 0.4583911234
A8: 갈현1동 | B8: 681 | C8: =유형별!C8 -> 388 | D8: =유형별!D8 -> 293 | E8: 57 | F8: =유형별!R8 -> 37 | G8: =유형별!S8 -> 20 | H8: 271 | I8: =유형별!X8 -> 142 | J8: =유형별!Y8 -> 129 | K8: 328 | L8: 179 | M8: 149 | N8: 0.4816446402 | R8: =2206/21767 -> 0.1013460743
A9: 갈현2동 | B9: 1262 | C9: =유형별!C9 -> 729 | D9: =유형별!D9 -> 533 | E9: 107 | F9: =유형별!R9 -> 67 | G9: =유형별!S9 -> 40 | H9: 504 | I9: =유형별!X9 -> 274 | J9: =유형별!Y9 -> 230 | K9: 611 | L9: 341 | M9: 270 | N9: 0.4841521395
A10: 구산동 | B10: 2105 | C10: =유형별!C10 -> 1449 | D10: =유형별!D10 -> 656 | E10: 401 | F10: =유형별!R10 -> 310 | G10: =유형별!S10 -> 91 | H10: 577 | I10: =유형별!X10 -> 325 | J10: =유형별!Y10 -> 252 | K10: 978 | L10: 635 | M10: 343 | N10: 0.464608076
A11: 대조동 | B11: 1231 | C11: =유형별!C11 -> 705 | D11: =유형별!D11 -> 526 | E11: 71 | F11: =유형별!R11 -> 47 | G11: =유형별!S11 -> 24 | H11: 492 | I11: =유형별!X11 -> 265 | J11: =유형별!Y11 -> 227 | K11: 563 | L11: 312 | M11: 251 | N11: 0.4573517465
A12: 응암1동 | B12: 1313 | C12: =유형별!C12 -> 715 | D12: =유형별!D12 -> 598 | E12: 75 | F12: =유형별!R12 -> 45 | G12: =유형별!S12 -> 30 | H12: 562 | I12: =유형별!X12 -> 291 | J12: =유형별!Y12 -> 271 | K12: 637 | L12: 336 | M12: 301 | N12: 0.4851485149
A13: 응암2동 | B13: 959 | C13: =유형별!C13 -> 530 | D13: =유형별!D13 -> 429 | E13: 72 | F13: =유형별!R13 -> 46 | G13: =유형별!S13 -> 26 | H13: 364 | I13: =유형별!X13 -> 196 | J13: =유형별!Y13 -> 168 | K13: 436 | L13: 242 | M13: 194 | N13: 0.4546402503
A14: 응암3동 | B14: 1314 | C14: =유형별!C14 -> 736 | D14: =유형별!D14 -> 578 | E14: 89 | F14: =유형별!R14 -> 60 | G14: =유형별!S14 -> 29 | H14: 509 | I14: =유형별!X14 -> 274 | J14: =유형별!Y14 -> 235 | K14: 598 | L14: 334 | M14: 264 | N14: 0.4550989346
A15: 역촌동 | B15: 2171 | C15: =유형별!C15 -> 1216 | D15: =유형별!D15 -> 955 | E15: 205 | F15: =유형별!R15 -> 127 | G15: =유형별!S15 -> 78 | H15: 886 | I15: =유형별!X15 -> 467 | J15: =유형별!Y15 -> 419 | K15: 1091 | L15: 594 | M15: 497 | N15: 0.5025333947
A16: 신사1동 | B16: 1246 | C16: =유형별!C16 -> 731 | D16: =유형별!D16 -> 515 | E16: 148 | F16: =유형별!R16 -> 88 | G16: =유형별!S16 -> 60 | H16: 479 | I16: =유형별!X16 -> 275 | J16: =유형별!Y16 -> 204 | K16: 627 | L16: 363 | M16: 264 | N16: 0.5032102729
A17: 신사2동 | B17: 880 | C17: =유형별!C17 -> 503 | D17: =유형별!D17 -> 377 | E17: 80 | F17: =유형별!R17 -> 46 | G17: =유형별!S17 -> 34 | H17: 377 | I17: =유형별!X17 -> 203 | J17: =유형별!Y17 -> 174 | K17: 457 | L17: 249 | M17: 208 | N17: 0.5193181818
A18: 증산동 | B18: 656 | C18: =유형별!C18 -> 384 | D18: =유형별!D18 -> 272 | E18: 43 | F18: =유형별!R18 -> 27 | G18: =유형별!S18 -> 16 | H18: 278 | I18: =유형별!X18 -> 159 | J18: =유형별!Y18 -> 119 | K18: 321 | L18: 186 | M18: 135 | N18: 0.4893292683
A19: 수색동 | B19: 822 | C19: =유형별!C19 -> 444 | D19: =유형별!D19 -> 378 | E19: 61 | F19: =유형별!R19 -> 41 | G19: =유형별!S19 -> 20 | H19: 317 | I19: =유형별!X19 -> 164 | J19: =유형별!Y19 -> 153 | K19: 378 | L19: 205 | M19: 173 | N19: 0.4598540146
A20: 진관동 | B20: 1935 | C20: =유형별!C20 -> 1135 | D20: =유형별!D20 -> 800 | E20: 138 | F20: =유형별!R20 -> 89 | G20: =유형별!S20 -> 49 | H20: 761 | I20: =유형별!X20 -> 423 | J20: =유형별!Y20 -> 338 | K20: 899 | L20: 512 | M20: 387 | N20: 0.4645994832
A22: *발달장애인 수는 2,206명으로 전체 장애인의 10.1%

Sheet Sheet3 (hidden)
A2: 자치구 | B2: 장애유형 | C2: 2023 | G2: 자치구 | H2: 장애유형 | I2: 2022 | M2: 자치구 | N2: 장애유형 | O2: 2021
C3: 계 | D3: 남 | E3: 여 | I3: 계 | J3: 남 | K3: 여 | O3: 계 | P3: 남 | Q3: 여
A4: 은평구 | B4: 합 계 | C4: 21602 | D4: 12604 | E4: 8998 | G4: 은평구 | H4: 합 계 | I4: =SUM(I5:I19) -> 21753 | J4: =SUM(J5:J19) -> 12687 | K4: 9066 | M4: 은평구 | N4: 합 계 | O4: 21753 | P4: 12704 | Q4: 9049
B5: 지체 | C5: 8636 | D5: 4714 | E5: 3922 | H5: 지체 | I5: 8837 | J5: 4842 | K5: 3995 | N5: 지체 | O5: 8917 | P5: 4897 | Q5: 4020
B6: 시각 | C6: 2265 | D6: 1340 | E6: 925 | H6: 시각 | I6: 2274 | J6: 1364 | K6: 910 | N6: 시각 | O6: 2315 | P6: 1387 | Q6: 928
B7: 청각 | C7: 3350 | D7: 1869 | E7: 1481 | H7: 청각 | I7: 3350 | J7: 1853 | K7: 1497 | N7: 청각 | O7: 3282 | P7: 1814 | Q7: 1468
B8: 언어 | C8: 173 | D8: 124 | E8: 49 | H8: 언어 | I8: 181 | J8: 134 | K8: 47 | N8: 언어 | O8: 177 | P8: 129 | Q8: 48
B9: 지적 | C9: 1863 | D9: 1222 | E9: 641 | H9: 지적 | I9: 1828 | J9: 1200 | K9: 628 | N9: 지적 | O9: 1805 | P9: 1185 | Q9: 620
B10: 뇌병변 | C10: 2188 | D10: 1307 | E10: 881 | H10: 뇌병변 | I10: 2218 | J10: 1318 | K10: 900 | N10: 뇌병변 | O10: 2244 | P10: 1349 | Q10: 895
B11: 자폐성 | C11: 450 | D11: 377 | E11: 73 | H11: 자폐성 | I11: 396 | J11: 333 | K11: 63 | N11: 자폐성 | O11: 355 | P11: 298 | Q11: 57
B12: 정신 | C12: 1137 | D12: 696 | E12: 441 | H12: 정신 | I12: 1148 | J12: 705 | K12: 443 | N12: 정신 | O12: 1162 | P12: 718 | Q12: 444
B13: 신장 | C13: 928 | D13: 569 | E13: 359 | H13: 신장 | I13: 894 | J13: 542 | K13: 352 | N13: 신장 | O13: 874 | P13: 533 | Q13: 341
B14: 심장 | C14: 49 | D14: 26 | E14: 23 | H14: 심장 | I14: 55 | J14: 24 | K14: 31 | N14: 심장 | O14: 55 | P14: 26 | Q14: 29
B15: 호흡기 | C15: 122 | D15: 88 | E15: 34 | H15: 호흡기 | I15: 120 | J15: 86 | K15: 34 | N15: 호흡기 | O15: 130 | P15: 92 | Q15: 38
B16: 간 | C16: 164 | D16: 109 | E16: 55 | H16: 간 | I16: 168 | J16: 113 | K16: 55 | N16: 간 | O16: 166 | P16: 114 | Q16: 52
B17: 안면 | C17: 25 | D17: 13 | E17: 12 | H17: 안면 | I17: 22 | J17: 11 | K17: 11 | N17: 안면 | O17: 23 | P17: 12 | Q17: 11
B18: 장루.요루 | C18: 187 | D18: 118 | E18: 69 | H18: 장루.요루 | I18: 194 | J18: 126 | K18: 68 | N18: 장루.요루 | O18: 181 | P18: 114 | Q18: 67
B19: 뇌전증 | C19: 65 | D19: 32 | E19: 33 | H19: 뇌전증 | I19: 68 | J19: 36 | K19: 32 | N19: 뇌전증 | O19: 67 | P19: 36 | Q19: 31
C22: 2023 | D22: 2022 | E22: 2021 | G22: 2024 | H22: 2025 | I22: 2026 | J22: 2027 | K22: 2028
A23: 외부신체기능장애 | C23: =SUM(C5,C10,C6,C7,C8,C17) -> 16637 | D23: =SUM(I5,I10,I6,I7,I8,I17) -> 16882 | E23: =SUM(O5,O10,O6,O7,O8,O17) -> 16958 | G23: =C23+C23*$G$29 -> 16478.99841 | H23: =G23+G23*$G$29 -> 16322.49736 | I23: =H23+H23*$G$29 -> 16167.48261 | J23: =I23+I23*$G$29 -> 16013.94002 | K23: =J23+J23*$G$29 -> 15861.85563
A24: 내부기관장애 | C24: =SUM(C13,C14,C16,C15,C18,C19) -> 1515 | D24: =SUM(I13:I16,I18,I19) -> 1499 | E24: =SUM(O13:O16,O18:O19) -> 1473 | G24: =C24+C24*$G$30 -> 1536.4524 | H24: =G24+G24*$G$30 -> 1558.208566 | I24: =H24+H24*$G$30 -> 1580.272799 | J24: =I24+I24*$G$30 -> 1602.649462 | K24: =J24+J24*$G$30 -> 1625.342978
A25: 정신적장애 | C25: =SUM(C9,C12,C11) -> 3450 | D25: =SUM(I9,I11,I12) -> 3372 | E25: =SUM(O9,O11,O12) -> 3322 | G25: =C25+C25*$G$31 -> 3515.8605 | H25: =G25+G25*$G$31 -> 3582.978277 | I25: =H25+H25*$G$31 -> 3651.377332 | J25: =I25+I25*$G$31 -> 3721.082126 | K25: =J25+J25*$G$31 -> 3792.117583
A26: 계 | C26: =SUM(C23:C25) -> 21602 | D26: =SUM(D23:D25) -> 21753 | E26: =SUM(E23:E25) -> 21753 | G26: =SUM(G23:G25) -> 21531.31131 | H26: =SUM(H23:H25) -> 21463.68421 | I26: =SUM(I23:I25) -> 21399.13274 | J26: =SUM(J23:J25) -> 21337.67161 | K26: =SUM(K23:K25) -> 21279.3162
A29: 외부신체기능장애 | C29: =(D23-C23)/D23 -> 0.01451249852 | D29: 0.004481660573 | F29: =(C29+D29)/2 -> 0.009497079546 | G29: -0.009497
A30: 내부기관장애 | C30: -0.01067378252 | D30: -0.01765105227 | F30: =(C30+D30)/2 -> -0.0141624174 | G30: 0.01416
A31: 정신적장애 | C31: -0.0231316726 | D31: -0.01505117399 | F31: =(C31+D31)/2 -> -0.01909142329 | G31: 0.01909
A32: 계
C36: 2024 | D36: 2025 | E36: 2026 | F36: 2027 | G36: 2028
C37: -0.0026
A38: 외부신체기능장애 | B38: 16637 | C38: 16593.7438 | D38: 16550.60007 | E38: 16507.56851 | F38: 16464.64883 | G38: 16421.84074
A39: 내부기관장애 | B39: 1515 | C39: 1511.061 | D39: 1507.132241 | E39: 1503.213698 | F39: 1499.305342 | G39: 1495.407148
A40: 정신적장애 | B40: 3450 | C40: 3441.03 | D40: 3432.083322 | E40: 3423.159905 | F40: 3414.25969 | G40: 3405.382614
B41: 21602 | C41: 21545.8348 | D41: 21489.81563 | E41: 21433.94211 | F41: 21378.21386 | G41: 21322.6305
